{"text_format":"3","workbook":"xlsx","n_sheets":4,"sheets":["BUDŽETS NO GADA SĀKUMA","MĒNEŠA IZDEVUMU KOPSAVILKUMS","DETALIZĒTI IZDEVUMI","LABDARĪBA UN SPONSORĒŠANA"],"not_rendered":{"defined_names":15},"read":"whole","date_system":"1900"}

{"sheet":"BUDŽETS NO GADA SĀKUMA","index":0,"n_rows":17,"n_cols":7,"rows_kept":17,"merged":[[1,1,1,4]]}
[null,"MĒNEŠA IZDEVUMU KOPSAVILKUMS"]
[null,"FAKTISKI pret BUDŽETS NO GADA SĀKUMA",{"$nulls":3},"gads",{"$f":"YEAR(TODAY())","v":2019}]
[]
[null,"V/G kods","Konta nosaukums","Faktiski","Budžets","Atlicis, EUR","Atlicis, %"]
[null,1000,"Reklamēšana",{"$f":"SUMIF(Mēneša_Izdevumu_Kopsavilkums[V/G kods],Tabula_No_Gada_Sākuma[[#This Row],[V/G kods]],Mēneša_Izdevumu_Kopsavilkums[Kopā])","v":{"v":0,"d":"0.00 EUR"}},{"v":100000,"d":"100,000.00 EUR"},{"$f":"IF(Tabula_No_Gada_Sākuma[[#This Row],[Budžets]]=\"\",\"\",Tabula_No_Gada_Sākuma[[#This Row],[Budžets]]-Tabula_No_Gada_Sākuma[[#This Row],[Faktiski]])","v":{"v":100000,"d":"100,000.00 EUR"}},{"$f":"IFERROR(Tabula_No_Gada_Sākuma[[#This Row],[Atlicis, EUR]]/Tabula_No_Gada_Sākuma[[#This Row],[Budžets]],\"\")","v":{"v":1,"d":"100.00%"}}]
[null,2000,"Biroja aprīkojums",{"$f":"SUMIF(Mēneša_Izdevumu_Kopsavilkums[V/G kods],Tabula_No_Gada_Sākuma[[#This Row],[V/G kods]],Mēneša_Izdevumu_Kopsavilkums[Kopā])","v":{"v":0,"d":"0.00 EUR"}},{"v":100000,"d":"100,000.00 EUR"},{"$f":"IF(Tabula_No_Gada_Sākuma[[#This Row],[Budžets]]=\"\",\"\",Tabula_No_Gada_Sākuma[[#This Row],[Budžets]]-Tabula_No_Gada_Sākuma[[#This Row],[Faktiski]])","v":{"v":100000,"d":"100,000.00 EUR"}},{"$f":"IFERROR(Tabula_No_Gada_Sākuma[[#This Row],[Atlicis, EUR]]/Tabula_No_Gada_Sākuma[[#This Row],[Budžets]],\"\")","v":{"v":1,"d":"100.00%"}}]
[null,3000,"Printeri",{"$f":"SUMIF(Mēneša_Izdevumu_Kopsavilkums[V/G kods],Tabula_No_Gada_Sākuma[[#This Row],[V/G kods]],Mēneša_Izdevumu_Kopsavilkums[Kopā])","v":{"v":0,"d":"0.00 EUR"}},{"v":100000,"d":"100,000.00 EUR"},{"$f":"IF(Tabula_No_Gada_Sākuma[[#This Row],[Budžets]]=\"\",\"\",Tabula_No_Gada_Sākuma[[#This Row],[Budžets]]-Tabula_No_Gada_Sākuma[[#This Row],[Faktiski]])","v":{"v":100000,"d":"100,000.00 EUR"}},{"$f":"IFERROR(Tabula_No_Gada_Sākuma[[#This Row],[Atlicis, EUR]]/Tabula_No_Gada_Sākuma[[#This Row],[Budžets]],\"\")","v":{"v":1,"d":"100.00%"}}]
[null,4000,"Servera izmaksas",{"$f":"SUMIF(Mēneša_Izdevumu_Kopsavilkums[V/G kods],Tabula_No_Gada_Sākuma[[#This Row],[V/G kods]],Mēneša_Izdevumu_Kopsavilkums[Kopā])","v":{"v":0,"d":"0.00 EUR"}},{"v":100000,"d":"100,000.00 EUR"},{"$f":"IF(Tabula_No_Gada_Sākuma[[#This Row],[Budžets]]=\"\",\"\",Tabula_No_Gada_Sākuma[[#This Row],[Budžets]]-Tabula_No_Gada_Sākuma[[#This Row],[Faktiski]])","v":{"v":100000,"d":"100,000.00 EUR"}},{"$f":"IFERROR(Tabula_No_Gada_Sākuma[[#This Row],[Atlicis, EUR]]/Tabula_No_Gada_Sākuma[[#This Row],[Budžets]],\"\")","v":{"v":1,"d":"100.00%"}}]
[null,5000,"Materiāli",{"$f":"SUMIF(Mēneša_Izdevumu_Kopsavilkums[V/G kods],Tabula_No_Gada_Sākuma[[#This Row],[V/G kods]],Mēneša_Izdevumu_Kopsavilkums[Kopā])","v":{"v":0,"d":"0.00 EUR"}},{"v":50000,"d":"50,000.00 EUR"},{"$f":"IF(Tabula_No_Gada_Sākuma[[#This Row],[Budžets]]=\"\",\"\",Tabula_No_Gada_Sākuma[[#This Row],[Budžets]]-Tabula_No_Gada_Sākuma[[#This Row],[Faktiski]])","v":{"v":50000,"d":"50,000.00 EUR"}},{"$f":"IFERROR(Tabula_No_Gada_Sākuma[[#This Row],[Atlicis, EUR]]/Tabula_No_Gada_Sākuma[[#This Row],[Budžets]],\"\")","v":{"v":1,"d":"100.00%"}}]
[null,6000,"Klienta izdevumi",{"$f":"SUMIF(Mēneša_Izdevumu_Kopsavilkums[V/G kods],Tabula_No_Gada_Sākuma[[#This Row],[V/G kods]],Mēneša_Izdevumu_Kopsavilkums[Kopā])","v":{"v":0,"d":"0.00 EUR"}},{"v":25000,"d":"25,000.00 EUR"},{"$f":"IF(Tabula_No_Gada_Sākuma[[#This Row],[Budžets]]=\"\",\"\",Tabula_No_Gada_Sākuma[[#This Row],[Budžets]]-Tabula_No_Gada_Sākuma[[#This Row],[Faktiski]])","v":{"v":25000,"d":"25,000.00 EUR"}},{"$f":"IFERROR(Tabula_No_Gada_Sākuma[[#This Row],[Atlicis, EUR]]/Tabula_No_Gada_Sākuma[[#This Row],[Budžets]],\"\")","v":{"v":1,"d":"100.00%"}}]
[null,7000,"Datori",{"$f":"SUMIF(Mēneša_Izdevumu_Kopsavilkums[V/G kods],Tabula_No_Gada_Sākuma[[#This Row],[V/G kods]],Mēneša_Izdevumu_Kopsavilkums[Kopā])","v":{"v":0,"d":"0.00 EUR"}},{"v":75000,"d":"75,000.00 EUR"},{"$f":"IF(Tabula_No_Gada_Sākuma[[#This Row],[Budžets]]=\"\",\"\",Tabula_No_Gada_Sākuma[[#This Row],[Budžets]]-Tabula_No_Gada_Sākuma[[#This Row],[Faktiski]])","v":{"v":75000,"d":"75,000.00 EUR"}},{"$f":"IFERROR(Tabula_No_Gada_Sākuma[[#This Row],[Atlicis, EUR]]/Tabula_No_Gada_Sākuma[[#This Row],[Budžets]],\"\")","v":{"v":1,"d":"100.00%"}}]
[null,8000,"Veselības apdrošināšanas plāns",{"$f":"SUMIF(Mēneša_Izdevumu_Kopsavilkums[V/G kods],Tabula_No_Gada_Sākuma[[#This Row],[V/G kods]],Mēneša_Izdevumu_Kopsavilkums[Kopā])","v":{"v":0,"d":"0.00 EUR"}},{"v":65000,"d":"65,000.00 EUR"},{"$f":"IF(Tabula_No_Gada_Sākuma[[#This Row],[Budžets]]=\"\",\"\",Tabula_No_Gada_Sākuma[[#This Row],[Budžets]]-Tabula_No_Gada_Sākuma[[#This Row],[Faktiski]])","v":{"v":65000,"d":"65,000.00 EUR"}},{"$f":"IFERROR(Tabula_No_Gada_Sākuma[[#This Row],[Atlicis, EUR]]/Tabula_No_Gada_Sākuma[[#This Row],[Budžets]],\"\")","v":{"v":1,"d":"100.00%"}}]
[null,9000,"Ēku izmaksas",{"$f":"SUMIF(Mēneša_Izdevumu_Kopsavilkums[V/G kods],Tabula_No_Gada_Sākuma[[#This Row],[V/G kods]],Mēneša_Izdevumu_Kopsavilkums[Kopā])","v":{"v":0,"d":"0.00 EUR"}},{"v":125000,"d":"125,000.00 EUR"},{"$f":"IF(Tabula_No_Gada_Sākuma[[#This Row],[Budžets]]=\"\",\"\",Tabula_No_Gada_Sākuma[[#This Row],[Budžets]]-Tabula_No_Gada_Sākuma[[#This Row],[Faktiski]])","v":{"v":125000,"d":"125,000.00 EUR"}},{"$f":"IFERROR(Tabula_No_Gada_Sākuma[[#This Row],[Atlicis, EUR]]/Tabula_No_Gada_Sākuma[[#This Row],[Budžets]],\"\")","v":{"v":1,"d":"100.00%"}}]
[null,10000,"Mārketings",{"$f":"SUMIF(Mēneša_Izdevumu_Kopsavilkums[V/G kods],Tabula_No_Gada_Sākuma[[#This Row],[V/G kods]],Mēneša_Izdevumu_Kopsavilkums[Kopā])","v":{"v":0,"d":"0.00 EUR"}},{"v":100000,"d":"100,000.00 EUR"},{"$f":"IF(Tabula_No_Gada_Sākuma[[#This Row],[Budžets]]=\"\",\"\",Tabula_No_Gada_Sākuma[[#This Row],[Budžets]]-Tabula_No_Gada_Sākuma[[#This Row],[Faktiski]])","v":{"v":100000,"d":"100,000.00 EUR"}},{"$f":"IFERROR(Tabula_No_Gada_Sākuma[[#This Row],[Atlicis, EUR]]/Tabula_No_Gada_Sākuma[[#This Row],[Budžets]],\"\")","v":{"v":1,"d":"100.00%"}}]
[null,11000,"Labdarība",{"$f":"SUMIF(Mēneša_Izdevumu_Kopsavilkums[V/G kods],Tabula_No_Gada_Sākuma[[#This Row],[V/G kods]],Mēneša_Izdevumu_Kopsavilkums[Kopā])","v":{"v":0,"d":"0.00 EUR"}},{"v":250000,"d":"250,000.00 EUR"},{"$f":"IF(Tabula_No_Gada_Sākuma[[#This Row],[Budžets]]=\"\",\"\",Tabula_No_Gada_Sākuma[[#This Row],[Budžets]]-Tabula_No_Gada_Sākuma[[#This Row],[Faktiski]])","v":{"v":250000,"d":"250,000.00 EUR"}},{"$f":"IFERROR(Tabula_No_Gada_Sākuma[[#This Row],[Atlicis, EUR]]/Tabula_No_Gada_Sākuma[[#This Row],[Budžets]],\"\")","v":{"v":1,"d":"100.00%"}}]
[null,12000,"Sponsorēšana",{"$f":"SUMIF(Mēneša_Izdevumu_Kopsavilkums[V/G kods],Tabula_No_Gada_Sākuma[[#This Row],[V/G kods]],Mēneša_Izdevumu_Kopsavilkums[Kopā])","v":{"v":0,"d":"0.00 EUR"}},{"v":50000,"d":"50,000.00 EUR"},{"$f":"IF(Tabula_No_Gada_Sākuma[[#This Row],[Budžets]]=\"\",\"\",Tabula_No_Gada_Sākuma[[#This Row],[Budžets]]-Tabula_No_Gada_Sākuma[[#This Row],[Faktiski]])","v":{"v":50000,"d":"50,000.00 EUR"}},{"$f":"IFERROR(Tabula_No_Gada_Sākuma[[#This Row],[Atlicis, EUR]]/Tabula_No_Gada_Sākuma[[#This Row],[Budžets]],\"\")","v":{"v":1,"d":"100.00%"}}]
[null,"Kopsumma",null,{"$f":"SUBTOTAL(109,Tabula_No_Gada_Sākuma[Faktiski])","v":{"v":0,"d":"0.00 EUR"}},{"$f":"SUBTOTAL(109,Tabula_No_Gada_Sākuma[Budžets])","v":{"v":1140000,"d":"1,140,000.00 EUR"}},{"$f":"SUBTOTAL(109,Tabula_No_Gada_Sākuma[Atlicis, EUR])","v":{"v":1140000,"d":"1,140,000.00 EUR"}},{"$f":"Tabula_No_Gada_Sākuma[[#Totals],[Atlicis, EUR]]/Tabula_No_Gada_Sākuma[[#Totals],[Budžets]]","v":{"v":1,"d":"100.00%"}}]

{"sheet":"MĒNEŠA IZDEVUMU KOPSAVILKUMS","index":1,"n_rows":18,"n_cols":17,"rows_kept":18,"merged":[[1,1,1,16]]}
[null,"BUDŽETS NO GADA SĀKUMA","DETALIZĒTI IZDEVUMI"]
[null,"MĒNEŠA IZDEVUMU KOPSAVILKUMS"]
[null,"Datu griezums datu filtrēšanai pēc kontu nosaukumiem ir šajā šūnā.",null,{"$f":"DATEVALUE(\"1-JAN\"&_GADS)","v":{"v":43466,"d":"4346600.00%"}},{"$f":"DATEVALUE(\"1-FEB\"&_GADS)","v":{"v":43497,"d":"4349700.00%"}},{"$f":"DATEVALUE(\"1-MAR\"&_GADS)","v":{"v":43525,"d":"4352500.00%"}},{"$f":"DATEVALUE(\"1-APR\"&_GADS)","v":{"v":43556,"d":"4355600.00%"}},{"$f":"DATEVALUE(\"1-MAI\"&_GADS)","v":{"v":43586,"d":"4358600.00%"}},{"$f":"DATEVALUE(\"1-JŪN\"&_GADS)","v":{"v":43617,"d":"4361700.00%"}},{"$f":"DATEVALUE(\"1-JŪl\"&_GADS)","v":{"v":43647,"d":"4364700.00%"}},{"$f":"DATEVALUE(\"1-AUG\"&_GADS)","v":{"v":43678,"d":"4367800.00%"}},{"$f":"DATEVALUE(\"1-SEP\"&_GADS)","v":{"v":43709,"d":"4370900.00%"}},{"$f":"DATEVALUE(\"1-OKT\"&_GADS)","v":{"v":43739,"d":"4373900.00%"}},{"$f":"DATEVALUE(\"1-NOV\"&_GADS)","v":{"v":43770,"d":"4377000.00%"}},{"$f":"DATEVALUE(\"1-DEC\"&_GADS)","v":{"v":43800,"d":"4380000.00%"}}]
[{"$nulls":3},{"$f":"EOMONTH(D3,0)","v":{"v":43496,"d":"4349600.00%"}},{"$f":"EOMONTH(E3,0)","v":{"v":43524,"d":"4352400.00%"}},{"$f":"EOMONTH(F3,0)","v":{"v":43555,"d":"4355500.00%"}},{"$f":"EOMONTH(G3,0)","v":{"v":43585,"d":"4358500.00%"}},{"$f":"EOMONTH(H3,0)","v":{"v":43616,"d":"4361600.00%"}},{"$f":"EOMONTH(I3,0)","v":{"v":43646,"d":"4364600.00%"}},{"v":43677,"d":"4367700.00%"},{"v":43708,"d":"4370800.00%"},{"v":43738,"d":"4373800.00%"},{"v":43769,"d":"4376900.00%"},{"v":43799,"d":"4379900.00%"},{"v":43830,"d":"4383000.00%"}]
[null,"V/G kods","Konta nosaukums","Janvāris","Februāris","Marts","Aprīlis","Maijs","Jūnijs","Jūlijs","Augusts","Septembris","Oktobris","Novembris","Decembris","Kopā"," "]
[null,1000,"Reklamēšana",{"$f":"SUMIFS(Detalizēti_Izdevumi[Čeka summa],Detalizēti_Izdevumi[V/G kods],Mēneša_Izdevumu_Kopsavilkums[[#This Row],[V/G kods]],Detalizēti_Izdevumi[Rēķina datums],\">=\"&D$3,Detalizēti_Izdevumi[Rēķina datums],\"<=\"&D$4)+SUMIFS(Cits[Čeka summa],Cits[V/G kods],Mēneša_Izdevumu_Kopsavilkums[[#This Row],[V/G kods]],Cits[Datums, kad uzsākts čeka pieprasījums],\">=\"&DATEVALUE(\" 1. \"&Mēneša_Izdevumu_Kopsavilkums[[#Headers],[Janvāris]]&_GADS),Cits[Datums, kad uzsākts čeka pieprasījums],\"<=\"&D$4)","v":{"v":0,"d":"0.00 EUR"}},{"$f":"SUMIFS(Detalizēti_Izdevumi[Čeka summa],Detalizēti_Izdevumi[V/G kods],Mēneša_Izdevumu_Kopsavilkums[[#This Row],[V/G kods]],Detalizēti_Izdevumi[Rēķina datums],\">=\"&E$3,Detalizēti_Izdevumi[Rēķina datums],\"<=\"&E$4)+SUMIFS(Cits[Čeka summa],Cits[V/G kods],Mēneša_Izdevumu_Kopsavilkums[[#This Row],[V/G kods]],Cits[Datums, kad uzsākts čeka pieprasījums],\">=\"&DATEVALUE(\" 1. \"&Mēneša_Izdevumu_Kopsavilkums[[#Headers],[Februāris]]&_GADS),Cits[Datums, kad uzsākts čeka pieprasījums],\"<=\"&E$4)","v":{"v":0,"d":"0.00 EUR"}},{"$f":"SUMIFS(Detalizēti_Izdevumi[Čeka summa],Detalizēti_Izdevumi[V/G kods],Mēneša_Izdevumu_Kopsavilkums[[#This Row],[V/G kods]],Detalizēti_Izdevumi[Rēķina datums],\">=\"&F$3,Detalizēti_Izdevumi[Rēķina datums],\"<=\"&F$4)+SUMIFS(Cits[Čeka summa],Cits[V/G kods],Mēneša_Izdevumu_Kopsavilkums[[#This Row],[V/G kods]],Cits[Datums, kad uzsākts čeka pieprasījums],\">=\"&DATEVALUE(\" 1. \"&Mēneša_Izdevumu_Kopsavilkums[[#Headers],[Marts]]&_GADS),Cits[Datums, kad uzsākts čeka pieprasījums],\"<=\"&F$4)","v":{"v":0,"d":"0.00 EUR"}},{"$f":"SUMIFS(Detalizēti_Izdevumi[Čeka summa],Detalizēti_Izdevumi[V/G kods],Mēneša_Izdevumu_Kopsavilkums[[#This Row],[V/G kods]],Detalizēti_Izdevumi[Rēķina datums],\">=\"&G$3,Detalizēti_Izdevumi[Rēķina datums],\"<=\"&G$4)+SUMIFS(Cits[Čeka summa],Cits[V/G kods],Mēneša_Izdevumu_Kopsavilkums[[#This Row],[V/G kods]],Cits[Datums, kad uzsākts čeka pieprasījums],\">=\"&DATEVALUE(\" 1. \"&Mēneša_Izdevumu_Kopsavilkums[[#Headers],[Aprīlis]]&_GADS),Cits[Datums, kad uzsākts čeka pieprasījums],\"<=\"&G$4)","v":{"v":0,"d":"0.00 EUR"}},{"$f":"SUMIFS(Detalizēti_Izdevumi[Čeka summa],Detalizēti_Izdevumi[V/G kods],Mēneša_Izdevumu_Kopsavilkums[[#This Row],[V/G kods]],Detalizēti_Izdevumi[Rēķina datums],\">=\"&H$3,Detalizēti_Izdevumi[Rēķina datums],\"<=\"&H$4)+SUMIFS(Cits[Čeka summa],Cits[V/G kods],Mēneša_Izdevumu_Kopsavilkums[[#This Row],[V/G kods]],Cits[Datums, kad uzsākts čeka pieprasījums],\">=\"&DATEVALUE(\" 1. \"&Mēneša_Izdevumu_Kopsavilkums[[#Headers],[Maijs]]&_GADS),Cits[Datums, kad uzsākts čeka pieprasījums],\"<=\"&H$4)","v":{"v":0,"d":"0.00 EUR"}},{"$f":"SUMIFS(Detalizēti_Izdevumi[Čeka summa],Detalizēti_Izdevumi[V/G kods],Mēneša_Izdevumu_Kopsavilkums[[#This Row],[V/G kods]],Detalizēti_Izdevumi[Rēķina datums],\">=\"&I$3,Detalizēti_Izdevumi[Rēķina datums],\"<=\"&I$4)+SUMIFS(Cits[Čeka summa],Cits[V/G kods],Mēneša_Izdevumu_Kopsavilkums[[#This Row],[V/G kods]],Cits[Datums, kad uzsākts čeka pieprasījums],\">=\"&DATEVALUE(\" 1. \"&Mēneša_Izdevumu_Kopsavilkums[[#Headers],[Jūnijs]]&_GADS),Cits[Datums, kad uzsākts čeka pieprasījums],\"<=\"&I$4)","v":{"v":0,"d":"0.00 EUR"}},{"$f":"SUMIFS(Detalizēti_Izdevumi[Čeka summa],Detalizēti_Izdevumi[V/G kods],Mēneša_Izdevumu_Kopsavilkums[[#This Row],[V/G kods]],Detalizēti_Izdevumi[Rēķina datums],\">=\"&J$3,Detalizēti_Izdevumi[Rēķina datums],\"<=\"&J$4)+SUMIFS(Cits[Čeka summa],Cits[V/G kods],Mēneša_Izdevumu_Kopsavilkums[[#This Row],[V/G kods]],Cits[Datums, kad uzsākts čeka pieprasījums],\">=\"&DATEVALUE(\" 1. \"&Mēneša_Izdevumu_Kopsavilkums[[#Headers],[Jūlijs]]&_GADS),Cits[Datums, kad uzsākts čeka pieprasījums],\"<=\"&J$4)","v":{"v":0,"d":"0.00 EUR"}},{"$f":"SUMIFS(Detalizēti_Izdevumi[Čeka summa],Detalizēti_Izdevumi[V/G kods],Mēneša_Izdevumu_Kopsavilkums[[#This Row],[V/G kods]],Detalizēti_Izdevumi[Rēķina datums],\">=\"&K$3,Detalizēti_Izdevumi[Rēķina datums],\"<=\"&K$4)+SUMIFS(Cits[Čeka summa],Cits[V/G kods],Mēneša_Izdevumu_Kopsavilkums[[#This Row],[V/G kods]],Cits[Datums, kad uzsākts čeka pieprasījums],\">=\"&DATEVALUE(\" 1. \"&Mēneša_Izdevumu_Kopsavilkums[[#Headers],[Augusts]]&_GADS),Cits[Datums, kad uzsākts čeka pieprasījums],\"<=\"&K$4)","v":{"v":0,"d":"0.00 EUR"}},{"$f":"SUMIFS(Detalizēti_Izdevumi[Čeka summa],Detalizēti_Izdevumi[V/G kods],Mēneša_Izdevumu_Kopsavilkums[[#This Row],[V/G kods]],Detalizēti_Izdevumi[Rēķina datums],\">=\"&L$3,Detalizēti_Izdevumi[Rēķina datums],\"<=\"&L$4)+SUMIFS(Cits[Čeka summa],Cits[V/G kods],Mēneša_Izdevumu_Kopsavilkums[[#This Row],[V/G kods]],Cits[Datums, kad uzsākts čeka pieprasījums],\">=\"&DATEVALUE(\" 1. \"&Mēneša_Izdevumu_Kopsavilkums[[#Headers],[Septembris]]&_GADS),Cits[Datums, kad uzsākts čeka pieprasījums],\"<=\"&L$4)","v":{"v":0,"d":"0.00 EUR"}},{"$f":"SUMIFS(Detalizēti_Izdevumi[Čeka summa],Detalizēti_Izdevumi[V/G kods],Mēneša_Izdevumu_Kopsavilkums[[#This Row],[V/G kods]],Detalizēti_Izdevumi[Rēķina datums],\">=\"&M$3,Detalizēti_Izdevumi[Rēķina datums],\"<=\"&M$4)+SUMIFS(Cits[Čeka summa],Cits[V/G kods],Mēneša_Izdevumu_Kopsavilkums[[#This Row],[V/G kods]],Cits[Datums, kad uzsākts čeka pieprasījums],\">=\"&DATEVALUE(\" 1. \"&Mēneša_Izdevumu_Kopsavilkums[[#Headers],[Oktobris]]&_GADS),Cits[Datums, kad uzsākts čeka pieprasījums],\"<=\"&M$4)","v":{"v":0,"d":"0.00 EUR"}},{"$f":"SUMIFS(Detalizēti_Izdevumi[Čeka summa],Detalizēti_Izdevumi[V/G kods],Mēneša_Izdevumu_Kopsavilkums[[#This Row],[V/G kods]],Detalizēti_Izdevumi[Rēķina datums],\">=\"&N$3,Detalizēti_Izdevumi[Rēķina datums],\"<=\"&N$4)+SUMIFS(Cits[Čeka summa],Cits[V/G kods],Mēneša_Izdevumu_Kopsavilkums[[#This Row],[V/G kods]],Cits[Datums, kad uzsākts čeka pieprasījums],\">=\"&DATEVALUE(\" 1. \"&Mēneša_Izdevumu_Kopsavilkums[[#Headers],[Novembris]]&_GADS),Cits[Datums, kad uzsākts čeka pieprasījums],\"<=\"&N$4)","v":{"v":0,"d":"0.00 EUR"}},{"$f":"SUMIFS(Detalizēti_Izdevumi[Čeka summa],Detalizēti_Izdevumi[V/G kods],Mēneša_Izdevumu_Kopsavilkums[[#This Row],[V/G kods]],Detalizēti_Izdevumi[Rēķina datums],\">=\"&O$3,Detalizēti_Izdevumi[Rēķina datums],\"<=\"&O$4)+SUMIFS(Cits[Čeka summa],Cits[V/G kods],Mēneša_Izdevumu_Kopsavilkums[[#This Row],[V/G kods]],Cits[Datums, kad uzsākts čeka pieprasījums],\">=\"&DATEVALUE(\" 1. \"&Mēneša_Izdevumu_Kopsavilkums[[#Headers],[Decembris]]&_GADS),Cits[Datums, kad uzsākts čeka pieprasījums],\"<=\"&O$4)","v":{"v":0,"d":"0.00 EUR"}},{"$f":"SUM(Mēneša_Izdevumu_Kopsavilkums[[#This Row],[Janvāris]:[Decembris]])","v":{"v":0,"d":"0.00 EUR"}}]
[null,2000,"Biroja aprīkojums",{"$f":"SUMIFS(Detalizēti_Izdevumi[Čeka summa],Detalizēti_Izdevumi[V/G kods],Mēneša_Izdevumu_Kopsavilkums[[#This Row],[V/G kods]],Detalizēti_Izdevumi[Rēķina datums],\">=\"&D$3,Detalizēti_Izdevumi[Rēķina datums],\"<=\"&D$4)+SUMIFS(Cits[Čeka summa],Cits[V/G kods],Mēneša_Izdevumu_Kopsavilkums[[#This Row],[V/G kods]],Cits[Datums, kad uzsākts čeka pieprasījums],\">=\"&DATEVALUE(\" 1. \"&Mēneša_Izdevumu_Kopsavilkums[[#Headers],[Janvāris]]&_GADS),Cits[Datums, kad uzsākts čeka pieprasījums],\"<=\"&D$4)","v":{"v":0,"d":"0.00 EUR"}},{"$f":"SUMIFS(Detalizēti_Izdevumi[Čeka summa],Detalizēti_Izdevumi[V/G kods],Mēneša_Izdevumu_Kopsavilkums[[#This Row],[V/G kods]],Detalizēti_Izdevumi[Rēķina datums],\">=\"&E$3,Detalizēti_Izdevumi[Rēķina datums],\"<=\"&E$4)+SUMIFS(Cits[Čeka summa],Cits[V/G kods],Mēneša_Izdevumu_Kopsavilkums[[#This Row],[V/G kods]],Cits[Datums, kad uzsākts čeka pieprasījums],\">=\"&DATEVALUE(\" 1. \"&Mēneša_Izdevumu_Kopsavilkums[[#Headers],[Februāris]]&_GADS),Cits[Datums, kad uzsākts čeka pieprasījums],\"<=\"&E$4)","v":{"v":0,"d":"0.00 EUR"}},{"$f":"SUMIFS(Detalizēti_Izdevumi[Čeka summa],Detalizēti_Izdevumi[V/G kods],Mēneša_Izdevumu_Kopsavilkums[[#This Row],[V/G kods]],Detalizēti_Izdevumi[Rēķina datums],\">=\"&F$3,Detalizēti_Izdevumi[Rēķina datums],\"<=\"&F$4)+SUMIFS(Cits[Čeka summa],Cits[V/G kods],Mēneša_Izdevumu_Kopsavilkums[[#This Row],[V/G kods]],Cits[Datums, kad uzsākts čeka pieprasījums],\">=\"&DATEVALUE(\" 1. \"&Mēneša_Izdevumu_Kopsavilkums[[#Headers],[Marts]]&_GADS),Cits[Datums, kad uzsākts čeka pieprasījums],\"<=\"&F$4)","v":{"v":0,"d":"0.00 EUR"}},{"$f":"SUMIFS(Detalizēti_Izdevumi[Čeka summa],Detalizēti_Izdevumi[V/G kods],Mēneša_Izdevumu_Kopsavilkums[[#This Row],[V/G kods]],Detalizēti_Izdevumi[Rēķina datums],\">=\"&G$3,Detalizēti_Izdevumi[Rēķina datums],\"<=\"&G$4)+SUMIFS(Cits[Čeka summa],Cits[V/G kods],Mēneša_Izdevumu_Kopsavilkums[[#This Row],[V/G kods]],Cits[Datums, kad uzsākts čeka pieprasījums],\">=\"&DATEVALUE(\" 1. \"&Mēneša_Izdevumu_Kopsavilkums[[#Headers],[Aprīlis]]&_GADS),Cits[Datums, kad uzsākts čeka pieprasījums],\"<=\"&G$4)","v":{"v":0,"d":"0.00 EUR"}},{"$f":"SUMIFS(Detalizēti_Izdevumi[Čeka summa],Detalizēti_Izdevumi[V/G kods],Mēneša_Izdevumu_Kopsavilkums[[#This Row],[V/G kods]],Detalizēti_Izdevumi[Rēķina datums],\">=\"&H$3,Detalizēti_Izdevumi[Rēķina datums],\"<=\"&H$4)+SUMIFS(Cits[Čeka summa],Cits[V/G kods],Mēneša_Izdevumu_Kopsavilkums[[#This Row],[V/G kods]],Cits[Datums, kad uzsākts čeka pieprasījums],\">=\"&DATEVALUE(\" 1. \"&Mēneša_Izdevumu_Kopsavilkums[[#Headers],[Maijs]]&_GADS),Cits[Datums, kad uzsākts čeka pieprasījums],\"<=\"&H$4)","v":{"v":0,"d":"0.00 EUR"}},{"$f":"SUMIFS(Detalizēti_Izdevumi[Čeka summa],Detalizēti_Izdevumi[V/G kods],Mēneša_Izdevumu_Kopsavilkums[[#This Row],[V/G kods]],Detalizēti_Izdevumi[Rēķina datums],\">=\"&I$3,Detalizēti_Izdevumi[Rēķina datums],\"<=\"&I$4)+SUMIFS(Cits[Čeka summa],Cits[V/G kods],Mēneša_Izdevumu_Kopsavilkums[[#This Row],[V/G kods]],Cits[Datums, kad uzsākts čeka pieprasījums],\">=\"&DATEVALUE(\" 1. \"&Mēneša_Izdevumu_Kopsavilkums[[#Headers],[Jūnijs]]&_GADS),Cits[Datums, kad uzsākts čeka pieprasījums],\"<=\"&I$4)","v":{"v":0,"d":"0.00 EUR"}},{"$f":"SUMIFS(Detalizēti_Izdevumi[Čeka summa],Detalizēti_Izdevumi[V/G kods],Mēneša_Izdevumu_Kopsavilkums[[#This Row],[V/G kods]],Detalizēti_Izdevumi[Rēķina datums],\">=\"&J$3,Detalizēti_Izdevumi[Rēķina datums],\"<=\"&J$4)+SUMIFS(Cits[Čeka summa],Cits[V/G kods],Mēneša_Izdevumu_Kopsavilkums[[#This Row],[V/G kods]],Cits[Datums, kad uzsākts čeka pieprasījums],\">=\"&DATEVALUE(\" 1. \"&Mēneša_Izdevumu_Kopsavilkums[[#Headers],[Jūlijs]]&_GADS),Cits[Datums, kad uzsākts čeka pieprasījums],\"<=\"&J$4)","v":{"v":0,"d":"0.00 EUR"}},{"$f":"SUMIFS(Detalizēti_Izdevumi[Čeka summa],Detalizēti_Izdevumi[V/G kods],Mēneša_Izdevumu_Kopsavilkums[[#This Row],[V/G kods]],Detalizēti_Izdevumi[Rēķina datums],\">=\"&K$3,Detalizēti_Izdevumi[Rēķina datums],\"<=\"&K$4)+SUMIFS(Cits[Čeka summa],Cits[V/G kods],Mēneša_Izdevumu_Kopsavilkums[[#This Row],[V/G kods]],Cits[Datums, kad uzsākts čeka pieprasījums],\">=\"&DATEVALUE(\" 1. \"&Mēneša_Izdevumu_Kopsavilkums[[#Headers],[Augusts]]&_GADS),Cits[Datums, kad uzsākts čeka pieprasījums],\"<=\"&K$4)","v":{"v":0,"d":"0.00 EUR"}},{"$f":"SUMIFS(Detalizēti_Izdevumi[Čeka summa],Detalizēti_Izdevumi[V/G kods],Mēneša_Izdevumu_Kopsavilkums[[#This Row],[V/G kods]],Detalizēti_Izdevumi[Rēķina datums],\">=\"&L$3,Detalizēti_Izdevumi[Rēķina datums],\"<=\"&L$4)+SUMIFS(Cits[Čeka summa],Cits[V/G kods],Mēneša_Izdevumu_Kopsavilkums[[#This Row],[V/G kods]],Cits[Datums, kad uzsākts čeka pieprasījums],\">=\"&DATEVALUE(\" 1. \"&Mēneša_Izdevumu_Kopsavilkums[[#Headers],[Septembris]]&_GADS),Cits[Datums, kad uzsākts čeka pieprasījums],\"<=\"&L$4)","v":{"v":0,"d":"0.00 EUR"}},{"$f":"SUMIFS(Detalizēti_Izdevumi[Čeka summa],Detalizēti_Izdevumi[V/G kods],Mēneša_Izdevumu_Kopsavilkums[[#This Row],[V/G kods]],Detalizēti_Izdevumi[Rēķina datums],\">=\"&M$3,Detalizēti_Izdevumi[Rēķina datums],\"<=\"&M$4)+SUMIFS(Cits[Čeka summa],Cits[V/G kods],Mēneša_Izdevumu_Kopsavilkums[[#This Row],[V/G kods]],Cits[Datums, kad uzsākts čeka pieprasījums],\">=\"&DATEVALUE(\" 1. \"&Mēneša_Izdevumu_Kopsavilkums[[#Headers],[Oktobris]]&_GADS),Cits[Datums, kad uzsākts čeka pieprasījums],\"<=\"&M$4)","v":{"v":0,"d":"0.00 EUR"}},{"$f":"SUMIFS(Detalizēti_Izdevumi[Čeka summa],Detalizēti_Izdevumi[V/G kods],Mēneša_Izdevumu_Kopsavilkums[[#This Row],[V/G kods]],Detalizēti_Izdevumi[Rēķina datums],\">=\"&N$3,Detalizēti_Izdevumi[Rēķina datums],\"<=\"&N$4)+SUMIFS(Cits[Čeka summa],Cits[V/G kods],Mēneša_Izdevumu_Kopsavilkums[[#This Row],[V/G kods]],Cits[Datums, kad uzsākts čeka pieprasījums],\">=\"&DATEVALUE(\" 1. \"&Mēneša_Izdevumu_Kopsavilkums[[#Headers],[Novembris]]&_GADS),Cits[Datums, kad uzsākts čeka pieprasījums],\"<=\"&N$4)","v":{"v":0,"d":"0.00 EUR"}},{"$f":"SUMIFS(Detalizēti_Izdevumi[Čeka summa],Detalizēti_Izdevumi[V/G kods],Mēneša_Izdevumu_Kopsavilkums[[#This Row],[V/G kods]],Detalizēti_Izdevumi[Rēķina datums],\">=\"&O$3,Detalizēti_Izdevumi[Rēķina datums],\"<=\"&O$4)+SUMIFS(Cits[Čeka summa],Cits[V/G kods],Mēneša_Izdevumu_Kopsavilkums[[#This Row],[V/G kods]],Cits[Datums, kad uzsākts čeka pieprasījums],\">=\"&DATEVALUE(\" 1. \"&Mēneša_Izdevumu_Kopsavilkums[[#Headers],[Decembris]]&_GADS),Cits[Datums, kad uzsākts čeka pieprasījums],\"<=\"&O$4)","v":{"v":0,"d":"0.00 EUR"}},{"$f":"SUM(Mēneša_Izdevumu_Kopsavilkums[[#This Row],[Janvāris]:[Decembris]])","v":{"v":0,"d":"0.00 EUR"}}]
[null,3000,"Printeri",{"$f":"SUMIFS(Detalizēti_Izdevumi[Čeka summa],Detalizēti_Izdevumi[V/G kods],Mēneša_Izdevumu_Kopsavilkums[[#This Row],[V/G kods]],Detalizēti_Izdevumi[Rēķina datums],\">=\"&D$3,Detalizēti_Izdevumi[Rēķina datums],\"<=\"&D$4)+SUMIFS(Cits[Čeka summa],Cits[V/G kods],Mēneša_Izdevumu_Kopsavilkums[[#This Row],[V/G kods]],Cits[Datums, kad uzsākts čeka pieprasījums],\">=\"&DATEVALUE(\" 1. \"&Mēneša_Izdevumu_Kopsavilkums[[#Headers],[Janvāris]]&_GADS),Cits[Datums, kad uzsākts čeka pieprasījums],\"<=\"&D$4)","v":{"v":0,"d":"0.00 EUR"}},{"$f":"SUMIFS(Detalizēti_Izdevumi[Čeka summa],Detalizēti_Izdevumi[V/G kods],Mēneša_Izdevumu_Kopsavilkums[[#This Row],[V/G kods]],Detalizēti_Izdevumi[Rēķina datums],\">=\"&E$3,Detalizēti_Izdevumi[Rēķina datums],\"<=\"&E$4)+SUMIFS(Cits[Čeka summa],Cits[V/G kods],Mēneša_Izdevumu_Kopsavilkums[[#This Row],[V/G kods]],Cits[Datums, kad uzsākts čeka pieprasījums],\">=\"&DATEVALUE(\" 1. \"&Mēneša_Izdevumu_Kopsavilkums[[#Headers],[Februāris]]&_GADS),Cits[Datums, kad uzsākts čeka pieprasījums],\"<=\"&E$4)","v":{"v":0,"d":"0.00 EUR"}},{"$f":"SUMIFS(Detalizēti_Izdevumi[Čeka summa],Detalizēti_Izdevumi[V/G kods],Mēneša_Izdevumu_Kopsavilkums[[#This Row],[V/G kods]],Detalizēti_Izdevumi[Rēķina datums],\">=\"&F$3,Detalizēti_Izdevumi[Rēķina datums],\"<=\"&F$4)+SUMIFS(Cits[Čeka summa],Cits[V/G kods],Mēneša_Izdevumu_Kopsavilkums[[#This Row],[V/G kods]],Cits[Datums, kad uzsākts čeka pieprasījums],\">=\"&DATEVALUE(\" 1. \"&Mēneša_Izdevumu_Kopsavilkums[[#Headers],[Marts]]&_GADS),Cits[Datums, kad uzsākts čeka pieprasījums],\"<=\"&F$4)","v":{"v":0,"d":"0.00 EUR"}},{"$f":"SUMIFS(Detalizēti_Izdevumi[Čeka summa],Detalizēti_Izdevumi[V/G kods],Mēneša_Izdevumu_Kopsavilkums[[#This Row],[V/G kods]],Detalizēti_Izdevumi[Rēķina datums],\">=\"&G$3,Detalizēti_Izdevumi[Rēķina datums],\"<=\"&G$4)+SUMIFS(Cits[Čeka summa],Cits[V/G kods],Mēneša_Izdevumu_Kopsavilkums[[#This Row],[V/G kods]],Cits[Datums, kad uzsākts čeka pieprasījums],\">=\"&DATEVALUE(\" 1. \"&Mēneša_Izdevumu_Kopsavilkums[[#Headers],[Aprīlis]]&_GADS),Cits[Datums, kad uzsākts čeka pieprasījums],\"<=\"&G$4)","v":{"v":0,"d":"0.00 EUR"}},{"$f":"SUMIFS(Detalizēti_Izdevumi[Čeka summa],Detalizēti_Izdevumi[V/G kods],Mēneša_Izdevumu_Kopsavilkums[[#This Row],[V/G kods]],Detalizēti_Izdevumi[Rēķina datums],\">=\"&H$3,Detalizēti_Izdevumi[Rēķina datums],\"<=\"&H$4)+SUMIFS(Cits[Čeka summa],Cits[V/G kods],Mēneša_Izdevumu_Kopsavilkums[[#This Row],[V/G kods]],Cits[Datums, kad uzsākts čeka pieprasījums],\">=\"&DATEVALUE(\" 1. \"&Mēneša_Izdevumu_Kopsavilkums[[#Headers],[Maijs]]&_GADS),Cits[Datums, kad uzsākts čeka pieprasījums],\"<=\"&H$4)","v":{"v":0,"d":"0.00 EUR"}},{"$f":"SUMIFS(Detalizēti_Izdevumi[Čeka summa],Detalizēti_Izdevumi[V/G kods],Mēneša_Izdevumu_Kopsavilkums[[#This Row],[V/G kods]],Detalizēti_Izdevumi[Rēķina datums],\">=\"&I$3,Detalizēti_Izdevumi[Rēķina datums],\"<=\"&I$4)+SUMIFS(Cits[Čeka summa],Cits[V/G kods],Mēneša_Izdevumu_Kopsavilkums[[#This Row],[V/G kods]],Cits[Datums, kad uzsākts čeka pieprasījums],\">=\"&DATEVALUE(\" 1. \"&Mēneša_Izdevumu_Kopsavilkums[[#Headers],[Jūnijs]]&_GADS),Cits[Datums, kad uzsākts čeka pieprasījums],\"<=\"&I$4)","v":{"v":0,"d":"0.00 EUR"}},{"$f":"SUMIFS(Detalizēti_Izdevumi[Čeka summa],Detalizēti_Izdevumi[V/G kods],Mēneša_Izdevumu_Kopsavilkums[[#This Row],[V/G kods]],Detalizēti_Izdevumi[Rēķina datums],\">=\"&J$3,Detalizēti_Izdevumi[Rēķina datums],\"<=\"&J$4)+SUMIFS(Cits[Čeka summa],Cits[V/G kods],Mēneša_Izdevumu_Kopsavilkums[[#This Row],[V/G kods]],Cits[Datums, kad uzsākts čeka pieprasījums],\">=\"&DATEVALUE(\" 1. \"&Mēneša_Izdevumu_Kopsavilkums[[#Headers],[Jūlijs]]&_GADS),Cits[Datums, kad uzsākts čeka pieprasījums],\"<=\"&J$4)","v":{"v":0,"d":"0.00 EUR"}},{"$f":"SUMIFS(Detalizēti_Izdevumi[Čeka summa],Detalizēti_Izdevumi[V/G kods],Mēneša_Izdevumu_Kopsavilkums[[#This Row],[V/G kods]],Detalizēti_Izdevumi[Rēķina datums],\">=\"&K$3,Detalizēti_Izdevumi[Rēķina datums],\"<=\"&K$4)+SUMIFS(Cits[Čeka summa],Cits[V/G kods],Mēneša_Izdevumu_Kopsavilkums[[#This Row],[V/G kods]],Cits[Datums, kad uzsākts čeka pieprasījums],\">=\"&DATEVALUE(\" 1. \"&Mēneša_Izdevumu_Kopsavilkums[[#Headers],[Augusts]]&_GADS),Cits[Datums, kad uzsākts čeka pieprasījums],\"<=\"&K$4)","v":{"v":0,"d":"0.00 EUR"}},{"$f":"SUMIFS(Detalizēti_Izdevumi[Čeka summa],Detalizēti_Izdevumi[V/G kods],Mēneša_Izdevumu_Kopsavilkums[[#This Row],[V/G kods]],Detalizēti_Izdevumi[Rēķina datums],\">=\"&L$3,Detalizēti_Izdevumi[Rēķina datums],\"<=\"&L$4)+SUMIFS(Cits[Čeka summa],Cits[V/G kods],Mēneša_Izdevumu_Kopsavilkums[[#This Row],[V/G kods]],Cits[Datums, kad uzsākts čeka pieprasījums],\">=\"&DATEVALUE(\" 1. \"&Mēneša_Izdevumu_Kopsavilkums[[#Headers],[Septembris]]&_GADS),Cits[Datums, kad uzsākts čeka pieprasījums],\"<=\"&L$4)","v":{"v":0,"d":"0.00 EUR"}},{"$f":"SUMIFS(Detalizēti_Izdevumi[Čeka summa],Detalizēti_Izdevumi[V/G kods],Mēneša_Izdevumu_Kopsavilkums[[#This Row],[V/G kods]],Detalizēti_Izdevumi[Rēķina datums],\">=\"&M$3,Detalizēti_Izdevumi[Rēķina datums],\"<=\"&M$4)+SUMIFS(Cits[Čeka summa],Cits[V/G kods],Mēneša_Izdevumu_Kopsavilkums[[#This Row],[V/G kods]],Cits[Datums, kad uzsākts čeka pieprasījums],\">=\"&DATEVALUE(\" 1. \"&Mēneša_Izdevumu_Kopsavilkums[[#Headers],[Oktobris]]&_GADS),Cits[Datums, kad uzsākts čeka pieprasījums],\"<=\"&M$4)","v":{"v":0,"d":"0.00 EUR"}},{"$f":"SUMIFS(Detalizēti_Izdevumi[Čeka summa],Detalizēti_Izdevumi[V/G kods],Mēneša_Izdevumu_Kopsavilkums[[#This Row],[V/G kods]],Detalizēti_Izdevumi[Rēķina datums],\">=\"&N$3,Detalizēti_Izdevumi[Rēķina datums],\"<=\"&N$4)+SUMIFS(Cits[Čeka summa],Cits[V/G kods],Mēneša_Izdevumu_Kopsavilkums[[#This Row],[V/G kods]],Cits[Datums, kad uzsākts čeka pieprasījums],\">=\"&DATEVALUE(\" 1. \"&Mēneša_Izdevumu_Kopsavilkums[[#Headers],[Novembris]]&_GADS),Cits[Datums, kad uzsākts čeka pieprasījums],\"<=\"&N$4)","v":{"v":0,"d":"0.00 EUR"}},{"$f":"SUMIFS(Detalizēti_Izdevumi[Čeka summa],Detalizēti_Izdevumi[V/G kods],Mēneša_Izdevumu_Kopsavilkums[[#This Row],[V/G kods]],Detalizēti_Izdevumi[Rēķina datums],\">=\"&O$3,Detalizēti_Izdevumi[Rēķina datums],\"<=\"&O$4)+SUMIFS(Cits[Čeka summa],Cits[V/G kods],Mēneša_Izdevumu_Kopsavilkums[[#This Row],[V/G kods]],Cits[Datums, kad uzsākts čeka pieprasījums],\">=\"&DATEVALUE(\" 1. \"&Mēneša_Izdevumu_Kopsavilkums[[#Headers],[Decembris]]&_GADS),Cits[Datums, kad uzsākts čeka pieprasījums],\"<=\"&O$4)","v":{"v":0,"d":"0.00 EUR"}},{"$f":"SUM(Mēneša_Izdevumu_Kopsavilkums[[#This Row],[Janvāris]:[Decembris]])","v":{"v":0,"d":"0.00 EUR"}}]
[null,4000,"Servera izmaksas",{"$f":"SUMIFS(Detalizēti_Izdevumi[Čeka summa],Detalizēti_Izdevumi[V/G kods],Mēneša_Izdevumu_Kopsavilkums[[#This Row],[V/G kods]],Detalizēti_Izdevumi[Rēķina datums],\">=\"&D$3,Detalizēti_Izdevumi[Rēķina datums],\"<=\"&D$4)+SUMIFS(Cits[Čeka summa],Cits[V/G kods],Mēneša_Izdevumu_Kopsavilkums[[#This Row],[V/G kods]],Cits[Datums, kad uzsākts čeka pieprasījums],\">=\"&DATEVALUE(\" 1. \"&Mēneša_Izdevumu_Kopsavilkums[[#Headers],[Janvāris]]&_GADS),Cits[Datums, kad uzsākts čeka pieprasījums],\"<=\"&D$4)","v":{"v":0,"d":"0.00 EUR"}},{"$f":"SUMIFS(Detalizēti_Izdevumi[Čeka summa],Detalizēti_Izdevumi[V/G kods],Mēneša_Izdevumu_Kopsavilkums[[#This Row],[V/G kods]],Detalizēti_Izdevumi[Rēķina datums],\">=\"&E$3,Detalizēti_Izdevumi[Rēķina datums],\"<=\"&E$4)+SUMIFS(Cits[Čeka summa],Cits[V/G kods],Mēneša_Izdevumu_Kopsavilkums[[#This Row],[V/G kods]],Cits[Datums, kad uzsākts čeka pieprasījums],\">=\"&DATEVALUE(\" 1. \"&Mēneša_Izdevumu_Kopsavilkums[[#Headers],[Februāris]]&_GADS),Cits[Datums, kad uzsākts čeka pieprasījums],\"<=\"&E$4)","v":{"v":0,"d":"0.00 EUR"}},{"$f":"SUMIFS(Detalizēti_Izdevumi[Čeka summa],Detalizēti_Izdevumi[V/G kods],Mēneša_Izdevumu_Kopsavilkums[[#This Row],[V/G kods]],Detalizēti_Izdevumi[Rēķina datums],\">=\"&F$3,Detalizēti_Izdevumi[Rēķina datums],\"<=\"&F$4)+SUMIFS(Cits[Čeka summa],Cits[V/G kods],Mēneša_Izdevumu_Kopsavilkums[[#This Row],[V/G kods]],Cits[Datums, kad uzsākts čeka pieprasījums],\">=\"&DATEVALUE(\" 1. \"&Mēneša_Izdevumu_Kopsavilkums[[#Headers],[Marts]]&_GADS),Cits[Datums, kad uzsākts čeka pieprasījums],\"<=\"&F$4)","v":{"v":0,"d":"0.00 EUR"}},{"$f":"SUMIFS(Detalizēti_Izdevumi[Čeka summa],Detalizēti_Izdevumi[V/G kods],Mēneša_Izdevumu_Kopsavilkums[[#This Row],[V/G kods]],Detalizēti_Izdevumi[Rēķina datums],\">=\"&G$3,Detalizēti_Izdevumi[Rēķina datums],\"<=\"&G$4)+SUMIFS(Cits[Čeka summa],Cits[V/G kods],Mēneša_Izdevumu_Kopsavilkums[[#This Row],[V/G kods]],Cits[Datums, kad uzsākts čeka pieprasījums],\">=\"&DATEVALUE(\" 1. \"&Mēneša_Izdevumu_Kopsavilkums[[#Headers],[Aprīlis]]&_GADS),Cits[Datums, kad uzsākts čeka pieprasījums],\"<=\"&G$4)","v":{"v":0,"d":"0.00 EUR"}},{"$f":"SUMIFS(Detalizēti_Izdevumi[Čeka summa],Detalizēti_Izdevumi[V/G kods],Mēneša_Izdevumu_Kopsavilkums[[#This Row],[V/G kods]],Detalizēti_Izdevumi[Rēķina datums],\">=\"&H$3,Detalizēti_Izdevumi[Rēķina datums],\"<=\"&H$4)+SUMIFS(Cits[Čeka summa],Cits[V/G kods],Mēneša_Izdevumu_Kopsavilkums[[#This Row],[V/G kods]],Cits[Datums, kad uzsākts čeka pieprasījums],\">=\"&DATEVALUE(\" 1. \"&Mēneša_Izdevumu_Kopsavilkums[[#Headers],[Maijs]]&_GADS),Cits[Datums, kad uzsākts čeka pieprasījums],\"<=\"&H$4)","v":{"v":0,"d":"0.00 EUR"}},{"$f":"SUMIFS(Detalizēti_Izdevumi[Čeka summa],Detalizēti_Izdevumi[V/G kods],Mēneša_Izdevumu_Kopsavilkums[[#This Row],[V/G kods]],Detalizēti_Izdevumi[Rēķina datums],\">=\"&I$3,Detalizēti_Izdevumi[Rēķina datums],\"<=\"&I$4)+SUMIFS(Cits[Čeka summa],Cits[V/G kods],Mēneša_Izdevumu_Kopsavilkums[[#This Row],[V/G kods]],Cits[Datums, kad uzsākts čeka pieprasījums],\">=\"&DATEVALUE(\" 1. \"&Mēneša_Izdevumu_Kopsavilkums[[#Headers],[Jūnijs]]&_GADS),Cits[Datums, kad uzsākts čeka pieprasījums],\"<=\"&I$4)","v":{"v":0,"d":"0.00 EUR"}},{"$f":"SUMIFS(Detalizēti_Izdevumi[Čeka summa],Detalizēti_Izdevumi[V/G kods],Mēneša_Izdevumu_Kopsavilkums[[#This Row],[V/G kods]],Detalizēti_Izdevumi[Rēķina datums],\">=\"&J$3,Detalizēti_Izdevumi[Rēķina datums],\"<=\"&J$4)+SUMIFS(Cits[Čeka summa],Cits[V/G kods],Mēneša_Izdevumu_Kopsavilkums[[#This Row],[V/G kods]],Cits[Datums, kad uzsākts čeka pieprasījums],\">=\"&DATEVALUE(\" 1. \"&Mēneša_Izdevumu_Kopsavilkums[[#Headers],[Jūlijs]]&_GADS),Cits[Datums, kad uzsākts čeka pieprasījums],\"<=\"&J$4)","v":{"v":0,"d":"0.00 EUR"}},{"$f":"SUMIFS(Detalizēti_Izdevumi[Čeka summa],Detalizēti_Izdevumi[V/G kods],Mēneša_Izdevumu_Kopsavilkums[[#This Row],[V/G kods]],Detalizēti_Izdevumi[Rēķina datums],\">=\"&K$3,Detalizēti_Izdevumi[Rēķina datums],\"<=\"&K$4)+SUMIFS(Cits[Čeka summa],Cits[V/G kods],Mēneša_Izdevumu_Kopsavilkums[[#This Row],[V/G kods]],Cits[Datums, kad uzsākts čeka pieprasījums],\">=\"&DATEVALUE(\" 1. \"&Mēneša_Izdevumu_Kopsavilkums[[#Headers],[Augusts]]&_GADS),Cits[Datums, kad uzsākts čeka pieprasījums],\"<=\"&K$4)","v":{"v":0,"d":"0.00 EUR"}},{"$f":"SUMIFS(Detalizēti_Izdevumi[Čeka summa],Detalizēti_Izdevumi[V/G kods],Mēneša_Izdevumu_Kopsavilkums[[#This Row],[V/G kods]],Detalizēti_Izdevumi[Rēķina datums],\">=\"&L$3,Detalizēti_Izdevumi[Rēķina datums],\"<=\"&L$4)+SUMIFS(Cits[Čeka summa],Cits[V/G kods],Mēneša_Izdevumu_Kopsavilkums[[#This Row],[V/G kods]],Cits[Datums, kad uzsākts čeka pieprasījums],\">=\"&DATEVALUE(\" 1. \"&Mēneša_Izdevumu_Kopsavilkums[[#Headers],[Septembris]]&_GADS),Cits[Datums, kad uzsākts čeka pieprasījums],\"<=\"&L$4)","v":{"v":0,"d":"0.00 EUR"}},{"$f":"SUMIFS(Detalizēti_Izdevumi[Čeka summa],Detalizēti_Izdevumi[V/G kods],Mēneša_Izdevumu_Kopsavilkums[[#This Row],[V/G kods]],Detalizēti_Izdevumi[Rēķina datums],\">=\"&M$3,Detalizēti_Izdevumi[Rēķina datums],\"<=\"&M$4)+SUMIFS(Cits[Čeka summa],Cits[V/G kods],Mēneša_Izdevumu_Kopsavilkums[[#This Row],[V/G kods]],Cits[Datums, kad uzsākts čeka pieprasījums],\">=\"&DATEVALUE(\" 1. \"&Mēneša_Izdevumu_Kopsavilkums[[#Headers],[Oktobris]]&_GADS),Cits[Datums, kad uzsākts čeka pieprasījums],\"<=\"&M$4)","v":{"v":0,"d":"0.00 EUR"}},{"$f":"SUMIFS(Detalizēti_Izdevumi[Čeka summa],Detalizēti_Izdevumi[V/G kods],Mēneša_Izdevumu_Kopsavilkums[[#This Row],[V/G kods]],Detalizēti_Izdevumi[Rēķina datums],\">=\"&N$3,Detalizēti_Izdevumi[Rēķina datums],\"<=\"&N$4)+SUMIFS(Cits[Čeka summa],Cits[V/G kods],Mēneša_Izdevumu_Kopsavilkums[[#This Row],[V/G kods]],Cits[Datums, kad uzsākts čeka pieprasījums],\">=\"&DATEVALUE(\" 1. \"&Mēneša_Izdevumu_Kopsavilkums[[#Headers],[Novembris]]&_GADS),Cits[Datums, kad uzsākts čeka pieprasījums],\"<=\"&N$4)","v":{"v":0,"d":"0.00 EUR"}},{"$f":"SUMIFS(Detalizēti_Izdevumi[Čeka summa],Detalizēti_Izdevumi[V/G kods],Mēneša_Izdevumu_Kopsavilkums[[#This Row],[V/G kods]],Detalizēti_Izdevumi[Rēķina datums],\">=\"&O$3,Detalizēti_Izdevumi[Rēķina datums],\"<=\"&O$4)+SUMIFS(Cits[Čeka summa],Cits[V/G kods],Mēneša_Izdevumu_Kopsavilkums[[#This Row],[V/G kods]],Cits[Datums, kad uzsākts čeka pieprasījums],\">=\"&DATEVALUE(\" 1. \"&Mēneša_Izdevumu_Kopsavilkums[[#Headers],[Decembris]]&_GADS),Cits[Datums, kad uzsākts čeka pieprasījums],\"<=\"&O$4)","v":{"v":0,"d":"0.00 EUR"}},{"$f":"SUM(Mēneša_Izdevumu_Kopsavilkums[[#This Row],[Janvāris]:[Decembris]])","v":{"v":0,"d":"0.00 EUR"}}]
[null,5000,"Materiāli",{"$f":"SUMIFS(Detalizēti_Izdevumi[Čeka summa],Detalizēti_Izdevumi[V/G kods],Mēneša_Izdevumu_Kopsavilkums[[#This Row],[V/G kods]],Detalizēti_Izdevumi[Rēķina datums],\">=\"&D$3,Detalizēti_Izdevumi[Rēķina datums],\"<=\"&D$4)+SUMIFS(Cits[Čeka summa],Cits[V/G kods],Mēneša_Izdevumu_Kopsavilkums[[#This Row],[V/G kods]],Cits[Datums, kad uzsākts čeka pieprasījums],\">=\"&DATEVALUE(\" 1. \"&Mēneša_Izdevumu_Kopsavilkums[[#Headers],[Janvāris]]&_GADS),Cits[Datums, kad uzsākts čeka pieprasījums],\"<=\"&D$4)","v":{"v":0,"d":"0.00 EUR"}},{"$f":"SUMIFS(Detalizēti_Izdevumi[Čeka summa],Detalizēti_Izdevumi[V/G kods],Mēneša_Izdevumu_Kopsavilkums[[#This Row],[V/G kods]],Detalizēti_Izdevumi[Rēķina datums],\">=\"&E$3,Detalizēti_Izdevumi[Rēķina datums],\"<=\"&E$4)+SUMIFS(Cits[Čeka summa],Cits[V/G kods],Mēneša_Izdevumu_Kopsavilkums[[#This Row],[V/G kods]],Cits[Datums, kad uzsākts čeka pieprasījums],\">=\"&DATEVALUE(\" 1. \"&Mēneša_Izdevumu_Kopsavilkums[[#Headers],[Februāris]]&_GADS),Cits[Datums, kad uzsākts čeka pieprasījums],\"<=\"&E$4)","v":{"v":0,"d":"0.00 EUR"}},{"$f":"SUMIFS(Detalizēti_Izdevumi[Čeka summa],Detalizēti_Izdevumi[V/G kods],Mēneša_Izdevumu_Kopsavilkums[[#This Row],[V/G kods]],Detalizēti_Izdevumi[Rēķina datums],\">=\"&F$3,Detalizēti_Izdevumi[Rēķina datums],\"<=\"&F$4)+SUMIFS(Cits[Čeka summa],Cits[V/G kods],Mēneša_Izdevumu_Kopsavilkums[[#This Row],[V/G kods]],Cits[Datums, kad uzsākts čeka pieprasījums],\">=\"&DATEVALUE(\" 1. \"&Mēneša_Izdevumu_Kopsavilkums[[#Headers],[Marts]]&_GADS),Cits[Datums, kad uzsākts čeka pieprasījums],\"<=\"&F$4)","v":{"v":0,"d":"0.00 EUR"}},{"$f":"SUMIFS(Detalizēti_Izdevumi[Čeka summa],Detalizēti_Izdevumi[V/G kods],Mēneša_Izdevumu_Kopsavilkums[[#This Row],[V/G kods]],Detalizēti_Izdevumi[Rēķina datums],\">=\"&G$3,Detalizēti_Izdevumi[Rēķina datums],\"<=\"&G$4)+SUMIFS(Cits[Čeka summa],Cits[V/G kods],Mēneša_Izdevumu_Kopsavilkums[[#This Row],[V/G kods]],Cits[Datums, kad uzsākts čeka pieprasījums],\">=\"&DATEVALUE(\" 1. \"&Mēneša_Izdevumu_Kopsavilkums[[#Headers],[Aprīlis]]&_GADS),Cits[Datums, kad uzsākts čeka pieprasījums],\"<=\"&G$4)","v":{"v":0,"d":"0.00 EUR"}},{"$f":"SUMIFS(Detalizēti_Izdevumi[Čeka summa],Detalizēti_Izdevumi[V/G kods],Mēneša_Izdevumu_Kopsavilkums[[#This Row],[V/G kods]],Detalizēti_Izdevumi[Rēķina datums],\">=\"&H$3,Detalizēti_Izdevumi[Rēķina datums],\"<=\"&H$4)+SUMIFS(Cits[Čeka summa],Cits[V/G kods],Mēneša_Izdevumu_Kopsavilkums[[#This Row],[V/G kods]],Cits[Datums, kad uzsākts čeka pieprasījums],\">=\"&DATEVALUE(\" 1. \"&Mēneša_Izdevumu_Kopsavilkums[[#Headers],[Maijs]]&_GADS),Cits[Datums, kad uzsākts čeka pieprasījums],\"<=\"&H$4)","v":{"v":0,"d":"0.00 EUR"}},{"$f":"SUMIFS(Detalizēti_Izdevumi[Čeka summa],Detalizēti_Izdevumi[V/G kods],Mēneša_Izdevumu_Kopsavilkums[[#This Row],[V/G kods]],Detalizēti_Izdevumi[Rēķina datums],\">=\"&I$3,Detalizēti_Izdevumi[Rēķina datums],\"<=\"&I$4)+SUMIFS(Cits[Čeka summa],Cits[V/G kods],Mēneša_Izdevumu_Kopsavilkums[[#This Row],[V/G kods]],Cits[Datums, kad uzsākts čeka pieprasījums],\">=\"&DATEVALUE(\" 1. \"&Mēneša_Izdevumu_Kopsavilkums[[#Headers],[Jūnijs]]&_GADS),Cits[Datums, kad uzsākts čeka pieprasījums],\"<=\"&I$4)","v":{"v":0,"d":"0.00 EUR"}},{"$f":"SUMIFS(Detalizēti_Izdevumi[Čeka summa],Detalizēti_Izdevumi[V/G kods],Mēneša_Izdevumu_Kopsavilkums[[#This Row],[V/G kods]],Detalizēti_Izdevumi[Rēķina datums],\">=\"&J$3,Detalizēti_Izdevumi[Rēķina datums],\"<=\"&J$4)+SUMIFS(Cits[Čeka summa],Cits[V/G kods],Mēneša_Izdevumu_Kopsavilkums[[#This Row],[V/G kods]],Cits[Datums, kad uzsākts čeka pieprasījums],\">=\"&DATEVALUE(\" 1. \"&Mēneša_Izdevumu_Kopsavilkums[[#Headers],[Jūlijs]]&_GADS),Cits[Datums, kad uzsākts čeka pieprasījums],\"<=\"&J$4)","v":{"v":0,"d":"0.00 EUR"}},{"$f":"SUMIFS(Detalizēti_Izdevumi[Čeka summa],Detalizēti_Izdevumi[V/G kods],Mēneša_Izdevumu_Kopsavilkums[[#This Row],[V/G kods]],Detalizēti_Izdevumi[Rēķina datums],\">=\"&K$3,Detalizēti_Izdevumi[Rēķina datums],\"<=\"&K$4)+SUMIFS(Cits[Čeka summa],Cits[V/G kods],Mēneša_Izdevumu_Kopsavilkums[[#This Row],[V/G kods]],Cits[Datums, kad uzsākts čeka pieprasījums],\">=\"&DATEVALUE(\" 1. \"&Mēneša_Izdevumu_Kopsavilkums[[#Headers],[Augusts]]&_GADS),Cits[Datums, kad uzsākts čeka pieprasījums],\"<=\"&K$4)","v":{"v":0,"d":"0.00 EUR"}},{"$f":"SUMIFS(Detalizēti_Izdevumi[Čeka summa],Detalizēti_Izdevumi[V/G kods],Mēneša_Izdevumu_Kopsavilkums[[#This Row],[V/G kods]],Detalizēti_Izdevumi[Rēķina datums],\">=\"&L$3,Detalizēti_Izdevumi[Rēķina datums],\"<=\"&L$4)+SUMIFS(Cits[Čeka summa],Cits[V/G kods],Mēneša_Izdevumu_Kopsavilkums[[#This Row],[V/G kods]],Cits[Datums, kad uzsākts čeka pieprasījums],\">=\"&DATEVALUE(\" 1. \"&Mēneša_Izdevumu_Kopsavilkums[[#Headers],[Septembris]]&_GADS),Cits[Datums, kad uzsākts čeka pieprasījums],\"<=\"&L$4)","v":{"v":0,"d":"0.00 EUR"}},{"$f":"SUMIFS(Detalizēti_Izdevumi[Čeka summa],Detalizēti_Izdevumi[V/G kods],Mēneša_Izdevumu_Kopsavilkums[[#This Row],[V/G kods]],Detalizēti_Izdevumi[Rēķina datums],\">=\"&M$3,Detalizēti_Izdevumi[Rēķina datums],\"<=\"&M$4)+SUMIFS(Cits[Čeka summa],Cits[V/G kods],Mēneša_Izdevumu_Kopsavilkums[[#This Row],[V/G kods]],Cits[Datums, kad uzsākts čeka pieprasījums],\">=\"&DATEVALUE(\" 1. \"&Mēneša_Izdevumu_Kopsavilkums[[#Headers],[Oktobris]]&_GADS),Cits[Datums, kad uzsākts čeka pieprasījums],\"<=\"&M$4)","v":{"v":0,"d":"0.00 EUR"}},{"$f":"SUMIFS(Detalizēti_Izdevumi[Čeka summa],Detalizēti_Izdevumi[V/G kods],Mēneša_Izdevumu_Kopsavilkums[[#This Row],[V/G kods]],Detalizēti_Izdevumi[Rēķina datums],\">=\"&N$3,Detalizēti_Izdevumi[Rēķina datums],\"<=\"&N$4)+SUMIFS(Cits[Čeka summa],Cits[V/G kods],Mēneša_Izdevumu_Kopsavilkums[[#This Row],[V/G kods]],Cits[Datums, kad uzsākts čeka pieprasījums],\">=\"&DATEVALUE(\" 1. \"&Mēneša_Izdevumu_Kopsavilkums[[#Headers],[Novembris]]&_GADS),Cits[Datums, kad uzsākts čeka pieprasījums],\"<=\"&N$4)","v":{"v":0,"d":"0.00 EUR"}},{"$f":"SUMIFS(Detalizēti_Izdevumi[Čeka summa],Detalizēti_Izdevumi[V/G kods],Mēneša_Izdevumu_Kopsavilkums[[#This Row],[V/G kods]],Detalizēti_Izdevumi[Rēķina datums],\">=\"&O$3,Detalizēti_Izdevumi[Rēķina datums],\"<=\"&O$4)+SUMIFS(Cits[Čeka summa],Cits[V/G kods],Mēneša_Izdevumu_Kopsavilkums[[#This Row],[V/G kods]],Cits[Datums, kad uzsākts čeka pieprasījums],\">=\"&DATEVALUE(\" 1. \"&Mēneša_Izdevumu_Kopsavilkums[[#Headers],[Decembris]]&_GADS),Cits[Datums, kad uzsākts čeka pieprasījums],\"<=\"&O$4)","v":{"v":0,"d":"0.00 EUR"}},{"$f":"SUM(Mēneša_Izdevumu_Kopsavilkums[[#This Row],[Janvāris]:[Decembris]])","v":{"v":0,"d":"0.00 EUR"}}]
[null,6000,"Klienta izdevumi",{"$f":"SUMIFS(Detalizēti_Izdevumi[Čeka summa],Detalizēti_Izdevumi[V/G kods],Mēneša_Izdevumu_Kopsavilkums[[#This Row],[V/G kods]],Detalizēti_Izdevumi[Rēķina datums],\">=\"&D$3,Detalizēti_Izdevumi[Rēķina datums],\"<=\"&D$4)+SUMIFS(Cits[Čeka summa],Cits[V/G kods],Mēneša_Izdevumu_Kopsavilkums[[#This Row],[V/G kods]],Cits[Datums, kad uzsākts čeka pieprasījums],\">=\"&DATEVALUE(\" 1. \"&Mēneša_Izdevumu_Kopsavilkums[[#Headers],[Janvāris]]&_GADS),Cits[Datums, kad uzsākts čeka pieprasījums],\"<=\"&D$4)","v":{"v":0,"d":"0.00 EUR"}},{"$f":"SUMIFS(Detalizēti_Izdevumi[Čeka summa],Detalizēti_Izdevumi[V/G kods],Mēneša_Izdevumu_Kopsavilkums[[#This Row],[V/G kods]],Detalizēti_Izdevumi[Rēķina datums],\">=\"&E$3,Detalizēti_Izdevumi[Rēķina datums],\"<=\"&E$4)+SUMIFS(Cits[Čeka summa],Cits[V/G kods],Mēneša_Izdevumu_Kopsavilkums[[#This Row],[V/G kods]],Cits[Datums, kad uzsākts čeka pieprasījums],\">=\"&DATEVALUE(\" 1. \"&Mēneša_Izdevumu_Kopsavilkums[[#Headers],[Februāris]]&_GADS),Cits[Datums, kad uzsākts čeka pieprasījums],\"<=\"&E$4)","v":{"v":0,"d":"0.00 EUR"}},{"$f":"SUMIFS(Detalizēti_Izdevumi[Čeka summa],Detalizēti_Izdevumi[V/G kods],Mēneša_Izdevumu_Kopsavilkums[[#This Row],[V/G kods]],Detalizēti_Izdevumi[Rēķina datums],\">=\"&F$3,Detalizēti_Izdevumi[Rēķina datums],\"<=\"&F$4)+SUMIFS(Cits[Čeka summa],Cits[V/G kods],Mēneša_Izdevumu_Kopsavilkums[[#This Row],[V/G kods]],Cits[Datums, kad uzsākts čeka pieprasījums],\">=\"&DATEVALUE(\" 1. \"&Mēneša_Izdevumu_Kopsavilkums[[#Headers],[Marts]]&_GADS),Cits[Datums, kad uzsākts čeka pieprasījums],\"<=\"&F$4)","v":{"v":0,"d":"0.00 EUR"}},{"$f":"SUMIFS(Detalizēti_Izdevumi[Čeka summa],Detalizēti_Izdevumi[V/G kods],Mēneša_Izdevumu_Kopsavilkums[[#This Row],[V/G kods]],Detalizēti_Izdevumi[Rēķina datums],\">=\"&G$3,Detalizēti_Izdevumi[Rēķina datums],\"<=\"&G$4)+SUMIFS(Cits[Čeka summa],Cits[V/G kods],Mēneša_Izdevumu_Kopsavilkums[[#This Row],[V/G kods]],Cits[Datums, kad uzsākts čeka pieprasījums],\">=\"&DATEVALUE(\" 1. \"&Mēneša_Izdevumu_Kopsavilkums[[#Headers],[Aprīlis]]&_GADS),Cits[Datums, kad uzsākts čeka pieprasījums],\"<=\"&G$4)","v":{"v":0,"d":"0.00 EUR"}},{"$f":"SUMIFS(Detalizēti_Izdevumi[Čeka summa],Detalizēti_Izdevumi[V/G kods],Mēneša_Izdevumu_Kopsavilkums[[#This Row],[V/G kods]],Detalizēti_Izdevumi[Rēķina datums],\">=\"&H$3,Detalizēti_Izdevumi[Rēķina datums],\"<=\"&H$4)+SUMIFS(Cits[Čeka summa],Cits[V/G kods],Mēneša_Izdevumu_Kopsavilkums[[#This Row],[V/G kods]],Cits[Datums, kad uzsākts čeka pieprasījums],\">=\"&DATEVALUE(\" 1. \"&Mēneša_Izdevumu_Kopsavilkums[[#Headers],[Maijs]]&_GADS),Cits[Datums, kad uzsākts čeka pieprasījums],\"<=\"&H$4)","v":{"v":0,"d":"0.00 EUR"}},{"$f":"SUMIFS(Detalizēti_Izdevumi[Čeka summa],Detalizēti_Izdevumi[V/G kods],Mēneša_Izdevumu_Kopsavilkums[[#This Row],[V/G kods]],Detalizēti_Izdevumi[Rēķina datums],\">=\"&I$3,Detalizēti_Izdevumi[Rēķina datums],\"<=\"&I$4)+SUMIFS(Cits[Čeka summa],Cits[V/G kods],Mēneša_Izdevumu_Kopsavilkums[[#This Row],[V/G kods]],Cits[Datums, kad uzsākts čeka pieprasījums],\">=\"&DATEVALUE(\" 1. \"&Mēneša_Izdevumu_Kopsavilkums[[#Headers],[Jūnijs]]&_GADS),Cits[Datums, kad uzsākts čeka pieprasījums],\"<=\"&I$4)","v":{"v":0,"d":"0.00 EUR"}},{"$f":"SUMIFS(Detalizēti_Izdevumi[Čeka summa],Detalizēti_Izdevumi[V/G kods],Mēneša_Izdevumu_Kopsavilkums[[#This Row],[V/G kods]],Detalizēti_Izdevumi[Rēķina datums],\">=\"&J$3,Detalizēti_Izdevumi[Rēķina datums],\"<=\"&J$4)+SUMIFS(Cits[Čeka summa],Cits[V/G kods],Mēneša_Izdevumu_Kopsavilkums[[#This Row],[V/G kods]],Cits[Datums, kad uzsākts čeka pieprasījums],\">=\"&DATEVALUE(\" 1. \"&Mēneša_Izdevumu_Kopsavilkums[[#Headers],[Jūlijs]]&_GADS),Cits[Datums, kad uzsākts čeka pieprasījums],\"<=\"&J$4)","v":{"v":0,"d":"0.00 EUR"}},{"$f":"SUMIFS(Detalizēti_Izdevumi[Čeka summa],Detalizēti_Izdevumi[V/G kods],Mēneša_Izdevumu_Kopsavilkums[[#This Row],[V/G kods]],Detalizēti_Izdevumi[Rēķina datums],\">=\"&K$3,Detalizēti_Izdevumi[Rēķina datums],\"<=\"&K$4)+SUMIFS(Cits[Čeka summa],Cits[V/G kods],Mēneša_Izdevumu_Kopsavilkums[[#This Row],[V/G kods]],Cits[Datums, kad uzsākts čeka pieprasījums],\">=\"&DATEVALUE(\" 1. \"&Mēneša_Izdevumu_Kopsavilkums[[#Headers],[Augusts]]&_GADS),Cits[Datums, kad uzsākts čeka pieprasījums],\"<=\"&K$4)","v":{"v":0,"d":"0.00 EUR"}},{"$f":"SUMIFS(Detalizēti_Izdevumi[Čeka summa],Detalizēti_Izdevumi[V/G kods],Mēneša_Izdevumu_Kopsavilkums[[#This Row],[V/G kods]],Detalizēti_Izdevumi[Rēķina datums],\">=\"&L$3,Detalizēti_Izdevumi[Rēķina datums],\"<=\"&L$4)+SUMIFS(Cits[Čeka summa],Cits[V/G kods],Mēneša_Izdevumu_Kopsavilkums[[#This Row],[V/G kods]],Cits[Datums, kad uzsākts čeka pieprasījums],\">=\"&DATEVALUE(\" 1. \"&Mēneša_Izdevumu_Kopsavilkums[[#Headers],[Septembris]]&_GADS),Cits[Datums, kad uzsākts čeka pieprasījums],\"<=\"&L$4)","v":{"v":0,"d":"0.00 EUR"}},{"$f":"SUMIFS(Detalizēti_Izdevumi[Čeka summa],Detalizēti_Izdevumi[V/G kods],Mēneša_Izdevumu_Kopsavilkums[[#This Row],[V/G kods]],Detalizēti_Izdevumi[Rēķina datums],\">=\"&M$3,Detalizēti_Izdevumi[Rēķina datums],\"<=\"&M$4)+SUMIFS(Cits[Čeka summa],Cits[V/G kods],Mēneša_Izdevumu_Kopsavilkums[[#This Row],[V/G kods]],Cits[Datums, kad uzsākts čeka pieprasījums],\">=\"&DATEVALUE(\" 1. \"&Mēneša_Izdevumu_Kopsavilkums[[#Headers],[Oktobris]]&_GADS),Cits[Datums, kad uzsākts čeka pieprasījums],\"<=\"&M$4)","v":{"v":0,"d":"0.00 EUR"}},{"$f":"SUMIFS(Detalizēti_Izdevumi[Čeka summa],Detalizēti_Izdevumi[V/G kods],Mēneša_Izdevumu_Kopsavilkums[[#This Row],[V/G kods]],Detalizēti_Izdevumi[Rēķina datums],\">=\"&N$3,Detalizēti_Izdevumi[Rēķina datums],\"<=\"&N$4)+SUMIFS(Cits[Čeka summa],Cits[V/G kods],Mēneša_Izdevumu_Kopsavilkums[[#This Row],[V/G kods]],Cits[Datums, kad uzsākts čeka pieprasījums],\">=\"&DATEVALUE(\" 1. \"&Mēneša_Izdevumu_Kopsavilkums[[#Headers],[Novembris]]&_GADS),Cits[Datums, kad uzsākts čeka pieprasījums],\"<=\"&N$4)","v":{"v":0,"d":"0.00 EUR"}},{"$f":"SUMIFS(Detalizēti_Izdevumi[Čeka summa],Detalizēti_Izdevumi[V/G kods],Mēneša_Izdevumu_Kopsavilkums[[#This Row],[V/G kods]],Detalizēti_Izdevumi[Rēķina datums],\">=\"&O$3,Detalizēti_Izdevumi[Rēķina datums],\"<=\"&O$4)+SUMIFS(Cits[Čeka summa],Cits[V/G kods],Mēneša_Izdevumu_Kopsavilkums[[#This Row],[V/G kods]],Cits[Datums, kad uzsākts čeka pieprasījums],\">=\"&DATEVALUE(\" 1. \"&Mēneša_Izdevumu_Kopsavilkums[[#Headers],[Decembris]]&_GADS),Cits[Datums, kad uzsākts čeka pieprasījums],\"<=\"&O$4)","v":{"v":0,"d":"0.00 EUR"}},{"$f":"SUM(Mēneša_Izdevumu_Kopsavilkums[[#This Row],[Janvāris]:[Decembris]])","v":{"v":0,"d":"0.00 EUR"}}]
[null,7000,"Datori",{"$f":"SUMIFS(Detalizēti_Izdevumi[Čeka summa],Detalizēti_Izdevumi[V/G kods],Mēneša_Izdevumu_Kopsavilkums[[#This Row],[V/G kods]],Detalizēti_Izdevumi[Rēķina datums],\">=\"&D$3,Detalizēti_Izdevumi[Rēķina datums],\"<=\"&D$4)+SUMIFS(Cits[Čeka summa],Cits[V/G kods],Mēneša_Izdevumu_Kopsavilkums[[#This Row],[V/G kods]],Cits[Datums, kad uzsākts čeka pieprasījums],\">=\"&DATEVALUE(\" 1. \"&Mēneša_Izdevumu_Kopsavilkums[[#Headers],[Janvāris]]&_GADS),Cits[Datums, kad uzsākts čeka pieprasījums],\"<=\"&D$4)","v":{"v":0,"d":"0.00 EUR"}},{"$f":"SUMIFS(Detalizēti_Izdevumi[Čeka summa],Detalizēti_Izdevumi[V/G kods],Mēneša_Izdevumu_Kopsavilkums[[#This Row],[V/G kods]],Detalizēti_Izdevumi[Rēķina datums],\">=\"&E$3,Detalizēti_Izdevumi[Rēķina datums],\"<=\"&E$4)+SUMIFS(Cits[Čeka summa],Cits[V/G kods],Mēneša_Izdevumu_Kopsavilkums[[#This Row],[V/G kods]],Cits[Datums, kad uzsākts čeka pieprasījums],\">=\"&DATEVALUE(\" 1. \"&Mēneša_Izdevumu_Kopsavilkums[[#Headers],[Februāris]]&_GADS),Cits[Datums, kad uzsākts čeka pieprasījums],\"<=\"&E$4)","v":{"v":0,"d":"0.00 EUR"}},{"$f":"SUMIFS(Detalizēti_Izdevumi[Čeka summa],Detalizēti_Izdevumi[V/G kods],Mēneša_Izdevumu_Kopsavilkums[[#This Row],[V/G kods]],Detalizēti_Izdevumi[Rēķina datums],\">=\"&F$3,Detalizēti_Izdevumi[Rēķina datums],\"<=\"&F$4)+SUMIFS(Cits[Čeka summa],Cits[V/G kods],Mēneša_Izdevumu_Kopsavilkums[[#This Row],[V/G kods]],Cits[Datums, kad uzsākts čeka pieprasījums],\">=\"&DATEVALUE(\" 1. \"&Mēneša_Izdevumu_Kopsavilkums[[#Headers],[Marts]]&_GADS),Cits[Datums, kad uzsākts čeka pieprasījums],\"<=\"&F$4)","v":{"v":0,"d":"0.00 EUR"}},{"$f":"SUMIFS(Detalizēti_Izdevumi[Čeka summa],Detalizēti_Izdevumi[V/G kods],Mēneša_Izdevumu_Kopsavilkums[[#This Row],[V/G kods]],Detalizēti_Izdevumi[Rēķina datums],\">=\"&G$3,Detalizēti_Izdevumi[Rēķina datums],\"<=\"&G$4)+SUMIFS(Cits[Čeka summa],Cits[V/G kods],Mēneša_Izdevumu_Kopsavilkums[[#This Row],[V/G kods]],Cits[Datums, kad uzsākts čeka pieprasījums],\">=\"&DATEVALUE(\" 1. \"&Mēneša_Izdevumu_Kopsavilkums[[#Headers],[Aprīlis]]&_GADS),Cits[Datums, kad uzsākts čeka pieprasījums],\"<=\"&G$4)","v":{"v":0,"d":"0.00 EUR"}},{"$f":"SUMIFS(Detalizēti_Izdevumi[Čeka summa],Detalizēti_Izdevumi[V/G kods],Mēneša_Izdevumu_Kopsavilkums[[#This Row],[V/G kods]],Detalizēti_Izdevumi[Rēķina datums],\">=\"&H$3,Detalizēti_Izdevumi[Rēķina datums],\"<=\"&H$4)+SUMIFS(Cits[Čeka summa],Cits[V/G kods],Mēneša_Izdevumu_Kopsavilkums[[#This Row],[V/G kods]],Cits[Datums, kad uzsākts čeka pieprasījums],\">=\"&DATEVALUE(\" 1. \"&Mēneša_Izdevumu_Kopsavilkums[[#Headers],[Maijs]]&_GADS),Cits[Datums, kad uzsākts čeka pieprasījums],\"<=\"&H$4)","v":{"v":0,"d":"0.00 EUR"}},{"$f":"SUMIFS(Detalizēti_Izdevumi[Čeka summa],Detalizēti_Izdevumi[V/G kods],Mēneša_Izdevumu_Kopsavilkums[[#This Row],[V/G kods]],Detalizēti_Izdevumi[Rēķina datums],\">=\"&I$3,Detalizēti_Izdevumi[Rēķina datums],\"<=\"&I$4)+SUMIFS(Cits[Čeka summa],Cits[V/G kods],Mēneša_Izdevumu_Kopsavilkums[[#This Row],[V/G kods]],Cits[Datums, kad uzsākts čeka pieprasījums],\">=\"&DATEVALUE(\" 1. \"&Mēneša_Izdevumu_Kopsavilkums[[#Headers],[Jūnijs]]&_GADS),Cits[Datums, kad uzsākts čeka pieprasījums],\"<=\"&I$4)","v":{"v":0,"d":"0.00 EUR"}},{"$f":"SUMIFS(Detalizēti_Izdevumi[Čeka summa],Detalizēti_Izdevumi[V/G kods],Mēneša_Izdevumu_Kopsavilkums[[#This Row],[V/G kods]],Detalizēti_Izdevumi[Rēķina datums],\">=\"&J$3,Detalizēti_Izdevumi[Rēķina datums],\"<=\"&J$4)+SUMIFS(Cits[Čeka summa],Cits[V/G kods],Mēneša_Izdevumu_Kopsavilkums[[#This Row],[V/G kods]],Cits[Datums, kad uzsākts čeka pieprasījums],\">=\"&DATEVALUE(\" 1. \"&Mēneša_Izdevumu_Kopsavilkums[[#Headers],[Jūlijs]]&_GADS),Cits[Datums, kad uzsākts čeka pieprasījums],\"<=\"&J$4)","v":{"v":0,"d":"0.00 EUR"}},{"$f":"SUMIFS(Detalizēti_Izdevumi[Čeka summa],Detalizēti_Izdevumi[V/G kods],Mēneša_Izdevumu_Kopsavilkums[[#This Row],[V/G kods]],Detalizēti_Izdevumi[Rēķina datums],\">=\"&K$3,Detalizēti_Izdevumi[Rēķina datums],\"<=\"&K$4)+SUMIFS(Cits[Čeka summa],Cits[V/G kods],Mēneša_Izdevumu_Kopsavilkums[[#This Row],[V/G kods]],Cits[Datums, kad uzsākts čeka pieprasījums],\">=\"&DATEVALUE(\" 1. \"&Mēneša_Izdevumu_Kopsavilkums[[#Headers],[Augusts]]&_GADS),Cits[Datums, kad uzsākts čeka pieprasījums],\"<=\"&K$4)","v":{"v":0,"d":"0.00 EUR"}},{"$f":"SUMIFS(Detalizēti_Izdevumi[Čeka summa],Detalizēti_Izdevumi[V/G kods],Mēneša_Izdevumu_Kopsavilkums[[#This Row],[V/G kods]],Detalizēti_Izdevumi[Rēķina datums],\">=\"&L$3,Detalizēti_Izdevumi[Rēķina datums],\"<=\"&L$4)+SUMIFS(Cits[Čeka summa],Cits[V/G kods],Mēneša_Izdevumu_Kopsavilkums[[#This Row],[V/G kods]],Cits[Datums, kad uzsākts čeka pieprasījums],\">=\"&DATEVALUE(\" 1. \"&Mēneša_Izdevumu_Kopsavilkums[[#Headers],[Septembris]]&_GADS),Cits[Datums, kad uzsākts čeka pieprasījums],\"<=\"&L$4)","v":{"v":0,"d":"0.00 EUR"}},{"$f":"SUMIFS(Detalizēti_Izdevumi[Čeka summa],Detalizēti_Izdevumi[V/G kods],Mēneša_Izdevumu_Kopsavilkums[[#This Row],[V/G kods]],Detalizēti_Izdevumi[Rēķina datums],\">=\"&M$3,Detalizēti_Izdevumi[Rēķina datums],\"<=\"&M$4)+SUMIFS(Cits[Čeka summa],Cits[V/G kods],Mēneša_Izdevumu_Kopsavilkums[[#This Row],[V/G kods]],Cits[Datums, kad uzsākts čeka pieprasījums],\">=\"&DATEVALUE(\" 1. \"&Mēneša_Izdevumu_Kopsavilkums[[#Headers],[Oktobris]]&_GADS),Cits[Datums, kad uzsākts čeka pieprasījums],\"<=\"&M$4)","v":{"v":0,"d":"0.00 EUR"}},{"$f":"SUMIFS(Detalizēti_Izdevumi[Čeka summa],Detalizēti_Izdevumi[V/G kods],Mēneša_Izdevumu_Kopsavilkums[[#This Row],[V/G kods]],Detalizēti_Izdevumi[Rēķina datums],\">=\"&N$3,Detalizēti_Izdevumi[Rēķina datums],\"<=\"&N$4)+SUMIFS(Cits[Čeka summa],Cits[V/G kods],Mēneša_Izdevumu_Kopsavilkums[[#This Row],[V/G kods]],Cits[Datums, kad uzsākts čeka pieprasījums],\">=\"&DATEVALUE(\" 1. \"&Mēneša_Izdevumu_Kopsavilkums[[#Headers],[Novembris]]&_GADS),Cits[Datums, kad uzsākts čeka pieprasījums],\"<=\"&N$4)","v":{"v":0,"d":"0.00 EUR"}},{"$f":"SUMIFS(Detalizēti_Izdevumi[Čeka summa],Detalizēti_Izdevumi[V/G kods],Mēneša_Izdevumu_Kopsavilkums[[#This Row],[V/G kods]],Detalizēti_Izdevumi[Rēķina datums],\">=\"&O$3,Detalizēti_Izdevumi[Rēķina datums],\"<=\"&O$4)+SUMIFS(Cits[Čeka summa],Cits[V/G kods],Mēneša_Izdevumu_Kopsavilkums[[#This Row],[V/G kods]],Cits[Datums, kad uzsākts čeka pieprasījums],\">=\"&DATEVALUE(\" 1. \"&Mēneša_Izdevumu_Kopsavilkums[[#Headers],[Decembris]]&_GADS),Cits[Datums, kad uzsākts čeka pieprasījums],\"<=\"&O$4)","v":{"v":0,"d":"0.00 EUR"}},{"$f":"SUM(Mēneša_Izdevumu_Kopsavilkums[[#This Row],[Janvāris]:[Decembris]])","v":{"v":0,"d":"0.00 EUR"}}]
[null,8000,"Veselības apdrošināšanas plāns",{"$f":"SUMIFS(Detalizēti_Izdevumi[Čeka summa],Detalizēti_Izdevumi[V/G kods],Mēneša_Izdevumu_Kopsavilkums[[#This Row],[V/G kods]],Detalizēti_Izdevumi[Rēķina datums],\">=\"&D$3,Detalizēti_Izdevumi[Rēķina datums],\"<=\"&D$4)+SUMIFS(Cits[Čeka summa],Cits[V/G kods],Mēneša_Izdevumu_Kopsavilkums[[#This Row],[V/G kods]],Cits[Datums, kad uzsākts čeka pieprasījums],\">=\"&DATEVALUE(\" 1. \"&Mēneša_Izdevumu_Kopsavilkums[[#Headers],[Janvāris]]&_GADS),Cits[Datums, kad uzsākts čeka pieprasījums],\"<=\"&D$4)","v":{"v":0,"d":"0.00 EUR"}},{"$f":"SUMIFS(Detalizēti_Izdevumi[Čeka summa],Detalizēti_Izdevumi[V/G kods],Mēneša_Izdevumu_Kopsavilkums[[#This Row],[V/G kods]],Detalizēti_Izdevumi[Rēķina datums],\">=\"&E$3,Detalizēti_Izdevumi[Rēķina datums],\"<=\"&E$4)+SUMIFS(Cits[Čeka summa],Cits[V/G kods],Mēneša_Izdevumu_Kopsavilkums[[#This Row],[V/G kods]],Cits[Datums, kad uzsākts čeka pieprasījums],\">=\"&DATEVALUE(\" 1. \"&Mēneša_Izdevumu_Kopsavilkums[[#Headers],[Februāris]]&_GADS),Cits[Datums, kad uzsākts čeka pieprasījums],\"<=\"&E$4)","v":{"v":0,"d":"0.00 EUR"}},{"$f":"SUMIFS(Detalizēti_Izdevumi[Čeka summa],Detalizēti_Izdevumi[V/G kods],Mēneša_Izdevumu_Kopsavilkums[[#This Row],[V/G kods]],Detalizēti_Izdevumi[Rēķina datums],\">=\"&F$3,Detalizēti_Izdevumi[Rēķina datums],\"<=\"&F$4)+SUMIFS(Cits[Čeka summa],Cits[V/G kods],Mēneša_Izdevumu_Kopsavilkums[[#This Row],[V/G kods]],Cits[Datums, kad uzsākts čeka pieprasījums],\">=\"&DATEVALUE(\" 1. \"&Mēneša_Izdevumu_Kopsavilkums[[#Headers],[Marts]]&_GADS),Cits[Datums, kad uzsākts čeka pieprasījums],\"<=\"&F$4)","v":{"v":0,"d":"0.00 EUR"}},{"$f":"SUMIFS(Detalizēti_Izdevumi[Čeka summa],Detalizēti_Izdevumi[V/G kods],Mēneša_Izdevumu_Kopsavilkums[[#This Row],[V/G kods]],Detalizēti_Izdevumi[Rēķina datums],\">=\"&G$3,Detalizēti_Izdevumi[Rēķina datums],\"<=\"&G$4)+SUMIFS(Cits[Čeka summa],Cits[V/G kods],Mēneša_Izdevumu_Kopsavilkums[[#This Row],[V/G kods]],Cits[Datums, kad uzsākts čeka pieprasījums],\">=\"&DATEVALUE(\" 1. \"&Mēneša_Izdevumu_Kopsavilkums[[#Headers],[Aprīlis]]&_GADS),Cits[Datums, kad uzsākts čeka pieprasījums],\"<=\"&G$4)","v":{"v":0,"d":"0.00 EUR"}},{"$f":"SUMIFS(Detalizēti_Izdevumi[Čeka summa],Detalizēti_Izdevumi[V/G kods],Mēneša_Izdevumu_Kopsavilkums[[#This Row],[V/G kods]],Detalizēti_Izdevumi[Rēķina datums],\">=\"&H$3,Detalizēti_Izdevumi[Rēķina datums],\"<=\"&H$4)+SUMIFS(Cits[Čeka summa],Cits[V/G kods],Mēneša_Izdevumu_Kopsavilkums[[#This Row],[V/G kods]],Cits[Datums, kad uzsākts čeka pieprasījums],\">=\"&DATEVALUE(\" 1. \"&Mēneša_Izdevumu_Kopsavilkums[[#Headers],[Maijs]]&_GADS),Cits[Datums, kad uzsākts čeka pieprasījums],\"<=\"&H$4)","v":{"v":0,"d":"0.00 EUR"}},{"$f":"SUMIFS(Detalizēti_Izdevumi[Čeka summa],Detalizēti_Izdevumi[V/G kods],Mēneša_Izdevumu_Kopsavilkums[[#This Row],[V/G kods]],Detalizēti_Izdevumi[Rēķina datums],\">=\"&I$3,Detalizēti_Izdevumi[Rēķina datums],\"<=\"&I$4)+SUMIFS(Cits[Čeka summa],Cits[V/G kods],Mēneša_Izdevumu_Kopsavilkums[[#This Row],[V/G kods]],Cits[Datums, kad uzsākts čeka pieprasījums],\">=\"&DATEVALUE(\" 1. \"&Mēneša_Izdevumu_Kopsavilkums[[#Headers],[Jūnijs]]&_GADS),Cits[Datums, kad uzsākts čeka pieprasījums],\"<=\"&I$4)","v":{"v":0,"d":"0.00 EUR"}},{"$f":"SUMIFS(Detalizēti_Izdevumi[Čeka summa],Detalizēti_Izdevumi[V/G kods],Mēneša_Izdevumu_Kopsavilkums[[#This Row],[V/G kods]],Detalizēti_Izdevumi[Rēķina datums],\">=\"&J$3,Detalizēti_Izdevumi[Rēķina datums],\"<=\"&J$4)+SUMIFS(Cits[Čeka summa],Cits[V/G kods],Mēneša_Izdevumu_Kopsavilkums[[#This Row],[V/G kods]],Cits[Datums, kad uzsākts čeka pieprasījums],\">=\"&DATEVALUE(\" 1. \"&Mēneša_Izdevumu_Kopsavilkums[[#Headers],[Jūlijs]]&_GADS),Cits[Datums, kad uzsākts čeka pieprasījums],\"<=\"&J$4)","v":{"v":0,"d":"0.00 EUR"}},{"$f":"SUMIFS(Detalizēti_Izdevumi[Čeka summa],Detalizēti_Izdevumi[V/G kods],Mēneša_Izdevumu_Kopsavilkums[[#This Row],[V/G kods]],Detalizēti_Izdevumi[Rēķina datums],\">=\"&K$3,Detalizēti_Izdevumi[Rēķina datums],\"<=\"&K$4)+SUMIFS(Cits[Čeka summa],Cits[V/G kods],Mēneša_Izdevumu_Kopsavilkums[[#This Row],[V/G kods]],Cits[Datums, kad uzsākts čeka pieprasījums],\">=\"&DATEVALUE(\" 1. \"&Mēneša_Izdevumu_Kopsavilkums[[#Headers],[Augusts]]&_GADS),Cits[Datums, kad uzsākts čeka pieprasījums],\"<=\"&K$4)","v":{"v":0,"d":"0.00 EUR"}},{"$f":"SUMIFS(Detalizēti_Izdevumi[Čeka summa],Detalizēti_Izdevumi[V/G kods],Mēneša_Izdevumu_Kopsavilkums[[#This Row],[V/G kods]],Detalizēti_Izdevumi[Rēķina datums],\">=\"&L$3,Detalizēti_Izdevumi[Rēķina datums],\"<=\"&L$4)+SUMIFS(Cits[Čeka summa],Cits[V/G kods],Mēneša_Izdevumu_Kopsavilkums[[#This Row],[V/G kods]],Cits[Datums, kad uzsākts čeka pieprasījums],\">=\"&DATEVALUE(\" 1. \"&Mēneša_Izdevumu_Kopsavilkums[[#Headers],[Septembris]]&_GADS),Cits[Datums, kad uzsākts čeka pieprasījums],\"<=\"&L$4)","v":{"v":0,"d":"0.00 EUR"}},{"$f":"SUMIFS(Detalizēti_Izdevumi[Čeka summa],Detalizēti_Izdevumi[V/G kods],Mēneša_Izdevumu_Kopsavilkums[[#This Row],[V/G kods]],Detalizēti_Izdevumi[Rēķina datums],\">=\"&M$3,Detalizēti_Izdevumi[Rēķina datums],\"<=\"&M$4)+SUMIFS(Cits[Čeka summa],Cits[V/G kods],Mēneša_Izdevumu_Kopsavilkums[[#This Row],[V/G kods]],Cits[Datums, kad uzsākts čeka pieprasījums],\">=\"&DATEVALUE(\" 1. \"&Mēneša_Izdevumu_Kopsavilkums[[#Headers],[Oktobris]]&_GADS),Cits[Datums, kad uzsākts čeka pieprasījums],\"<=\"&M$4)","v":{"v":0,"d":"0.00 EUR"}},{"$f":"SUMIFS(Detalizēti_Izdevumi[Čeka summa],Detalizēti_Izdevumi[V/G kods],Mēneša_Izdevumu_Kopsavilkums[[#This Row],[V/G kods]],Detalizēti_Izdevumi[Rēķina datums],\">=\"&N$3,Detalizēti_Izdevumi[Rēķina datums],\"<=\"&N$4)+SUMIFS(Cits[Čeka summa],Cits[V/G kods],Mēneša_Izdevumu_Kopsavilkums[[#This Row],[V/G kods]],Cits[Datums, kad uzsākts čeka pieprasījums],\">=\"&DATEVALUE(\" 1. \"&Mēneša_Izdevumu_Kopsavilkums[[#Headers],[Novembris]]&_GADS),Cits[Datums, kad uzsākts čeka pieprasījums],\"<=\"&N$4)","v":{"v":0,"d":"0.00 EUR"}},{"$f":"SUMIFS(Detalizēti_Izdevumi[Čeka summa],Detalizēti_Izdevumi[V/G kods],Mēneša_Izdevumu_Kopsavilkums[[#This Row],[V/G kods]],Detalizēti_Izdevumi[Rēķina datums],\">=\"&O$3,Detalizēti_Izdevumi[Rēķina datums],\"<=\"&O$4)+SUMIFS(Cits[Čeka summa],Cits[V/G kods],Mēneša_Izdevumu_Kopsavilkums[[#This Row],[V/G kods]],Cits[Datums, kad uzsākts čeka pieprasījums],\">=\"&DATEVALUE(\" 1. \"&Mēneša_Izdevumu_Kopsavilkums[[#Headers],[Decembris]]&_GADS),Cits[Datums, kad uzsākts čeka pieprasījums],\"<=\"&O$4)","v":{"v":0,"d":"0.00 EUR"}},{"$f":"SUM(Mēneša_Izdevumu_Kopsavilkums[[#This Row],[Janvāris]:[Decembris]])","v":{"v":0,"d":"0.00 EUR"}}]
[null,9000,"Ēku izmaksas",{"$f":"SUMIFS(Detalizēti_Izdevumi[Čeka summa],Detalizēti_Izdevumi[V/G kods],Mēneša_Izdevumu_Kopsavilkums[[#This Row],[V/G kods]],Detalizēti_Izdevumi[Rēķina datums],\">=\"&D$3,Detalizēti_Izdevumi[Rēķina datums],\"<=\"&D$4)+SUMIFS(Cits[Čeka summa],Cits[V/G kods],Mēneša_Izdevumu_Kopsavilkums[[#This Row],[V/G kods]],Cits[Datums, kad uzsākts čeka pieprasījums],\">=\"&DATEVALUE(\" 1. \"&Mēneša_Izdevumu_Kopsavilkums[[#Headers],[Janvāris]]&_GADS),Cits[Datums, kad uzsākts čeka pieprasījums],\"<=\"&D$4)","v":{"v":0,"d":"0.00 EUR"}},{"$f":"SUMIFS(Detalizēti_Izdevumi[Čeka summa],Detalizēti_Izdevumi[V/G kods],Mēneša_Izdevumu_Kopsavilkums[[#This Row],[V/G kods]],Detalizēti_Izdevumi[Rēķina datums],\">=\"&E$3,Detalizēti_Izdevumi[Rēķina datums],\"<=\"&E$4)+SUMIFS(Cits[Čeka summa],Cits[V/G kods],Mēneša_Izdevumu_Kopsavilkums[[#This Row],[V/G kods]],Cits[Datums, kad uzsākts čeka pieprasījums],\">=\"&DATEVALUE(\" 1. \"&Mēneša_Izdevumu_Kopsavilkums[[#Headers],[Februāris]]&_GADS),Cits[Datums, kad uzsākts čeka pieprasījums],\"<=\"&E$4)","v":{"v":0,"d":"0.00 EUR"}},{"$f":"SUMIFS(Detalizēti_Izdevumi[Čeka summa],Detalizēti_Izdevumi[V/G kods],Mēneša_Izdevumu_Kopsavilkums[[#This Row],[V/G kods]],Detalizēti_Izdevumi[Rēķina datums],\">=\"&F$3,Detalizēti_Izdevumi[Rēķina datums],\"<=\"&F$4)+SUMIFS(Cits[Čeka summa],Cits[V/G kods],Mēneša_Izdevumu_Kopsavilkums[[#This Row],[V/G kods]],Cits[Datums, kad uzsākts čeka pieprasījums],\">=\"&DATEVALUE(\" 1. \"&Mēneša_Izdevumu_Kopsavilkums[[#Headers],[Marts]]&_GADS),Cits[Datums, kad uzsākts čeka pieprasījums],\"<=\"&F$4)","v":{"v":0,"d":"0.00 EUR"}},{"$f":"SUMIFS(Detalizēti_Izdevumi[Čeka summa],Detalizēti_Izdevumi[V/G kods],Mēneša_Izdevumu_Kopsavilkums[[#This Row],[V/G kods]],Detalizēti_Izdevumi[Rēķina datums],\">=\"&G$3,Detalizēti_Izdevumi[Rēķina datums],\"<=\"&G$4)+SUMIFS(Cits[Čeka summa],Cits[V/G kods],Mēneša_Izdevumu_Kopsavilkums[[#This Row],[V/G kods]],Cits[Datums, kad uzsākts čeka pieprasījums],\">=\"&DATEVALUE(\" 1. \"&Mēneša_Izdevumu_Kopsavilkums[[#Headers],[Aprīlis]]&_GADS),Cits[Datums, kad uzsākts čeka pieprasījums],\"<=\"&G$4)","v":{"v":0,"d":"0.00 EUR"}},{"$f":"SUMIFS(Detalizēti_Izdevumi[Čeka summa],Detalizēti_Izdevumi[V/G kods],Mēneša_Izdevumu_Kopsavilkums[[#This Row],[V/G kods]],Detalizēti_Izdevumi[Rēķina datums],\">=\"&H$3,Detalizēti_Izdevumi[Rēķina datums],\"<=\"&H$4)+SUMIFS(Cits[Čeka summa],Cits[V/G kods],Mēneša_Izdevumu_Kopsavilkums[[#This Row],[V/G kods]],Cits[Datums, kad uzsākts čeka pieprasījums],\">=\"&DATEVALUE(\" 1. \"&Mēneša_Izdevumu_Kopsavilkums[[#Headers],[Maijs]]&_GADS),Cits[Datums, kad uzsākts čeka pieprasījums],\"<=\"&H$4)","v":{"v":0,"d":"0.00 EUR"}},{"$f":"SUMIFS(Detalizēti_Izdevumi[Čeka summa],Detalizēti_Izdevumi[V/G kods],Mēneša_Izdevumu_Kopsavilkums[[#This Row],[V/G kods]],Detalizēti_Izdevumi[Rēķina datums],\">=\"&I$3,Detalizēti_Izdevumi[Rēķina datums],\"<=\"&I$4)+SUMIFS(Cits[Čeka summa],Cits[V/G kods],Mēneša_Izdevumu_Kopsavilkums[[#This Row],[V/G kods]],Cits[Datums, kad uzsākts čeka pieprasījums],\">=\"&DATEVALUE(\" 1. \"&Mēneša_Izdevumu_Kopsavilkums[[#Headers],[Jūnijs]]&_GADS),Cits[Datums, kad uzsākts čeka pieprasījums],\"<=\"&I$4)","v":{"v":0,"d":"0.00 EUR"}},{"$f":"SUMIFS(Detalizēti_Izdevumi[Čeka summa],Detalizēti_Izdevumi[V/G kods],Mēneša_Izdevumu_Kopsavilkums[[#This Row],[V/G kods]],Detalizēti_Izdevumi[Rēķina datums],\">=\"&J$3,Detalizēti_Izdevumi[Rēķina datums],\"<=\"&J$4)+SUMIFS(Cits[Čeka summa],Cits[V/G kods],Mēneša_Izdevumu_Kopsavilkums[[#This Row],[V/G kods]],Cits[Datums, kad uzsākts čeka pieprasījums],\">=\"&DATEVALUE(\" 1. \"&Mēneša_Izdevumu_Kopsavilkums[[#Headers],[Jūlijs]]&_GADS),Cits[Datums, kad uzsākts čeka pieprasījums],\"<=\"&J$4)","v":{"v":0,"d":"0.00 EUR"}},{"$f":"SUMIFS(Detalizēti_Izdevumi[Čeka summa],Detalizēti_Izdevumi[V/G kods],Mēneša_Izdevumu_Kopsavilkums[[#This Row],[V/G kods]],Detalizēti_Izdevumi[Rēķina datums],\">=\"&K$3,Detalizēti_Izdevumi[Rēķina datums],\"<=\"&K$4)+SUMIFS(Cits[Čeka summa],Cits[V/G kods],Mēneša_Izdevumu_Kopsavilkums[[#This Row],[V/G kods]],Cits[Datums, kad uzsākts čeka pieprasījums],\">=\"&DATEVALUE(\" 1. \"&Mēneša_Izdevumu_Kopsavilkums[[#Headers],[Augusts]]&_GADS),Cits[Datums, kad uzsākts čeka pieprasījums],\"<=\"&K$4)","v":{"v":0,"d":"0.00 EUR"}},{"$f":"SUMIFS(Detalizēti_Izdevumi[Čeka summa],Detalizēti_Izdevumi[V/G kods],Mēneša_Izdevumu_Kopsavilkums[[#This Row],[V/G kods]],Detalizēti_Izdevumi[Rēķina datums],\">=\"&L$3,Detalizēti_Izdevumi[Rēķina datums],\"<=\"&L$4)+SUMIFS(Cits[Čeka summa],Cits[V/G kods],Mēneša_Izdevumu_Kopsavilkums[[#This Row],[V/G kods]],Cits[Datums, kad uzsākts čeka pieprasījums],\">=\"&DATEVALUE(\" 1. \"&Mēneša_Izdevumu_Kopsavilkums[[#Headers],[Septembris]]&_GADS),Cits[Datums, kad uzsākts čeka pieprasījums],\"<=\"&L$4)","v":{"v":0,"d":"0.00 EUR"}},{"$f":"SUMIFS(Detalizēti_Izdevumi[Čeka summa],Detalizēti_Izdevumi[V/G kods],Mēneša_Izdevumu_Kopsavilkums[[#This Row],[V/G kods]],Detalizēti_Izdevumi[Rēķina datums],\">=\"&M$3,Detalizēti_Izdevumi[Rēķina datums],\"<=\"&M$4)+SUMIFS(Cits[Čeka summa],Cits[V/G kods],Mēneša_Izdevumu_Kopsavilkums[[#This Row],[V/G kods]],Cits[Datums, kad uzsākts čeka pieprasījums],\">=\"&DATEVALUE(\" 1. \"&Mēneša_Izdevumu_Kopsavilkums[[#Headers],[Oktobris]]&_GADS),Cits[Datums, kad uzsākts čeka pieprasījums],\"<=\"&M$4)","v":{"v":0,"d":"0.00 EUR"}},{"$f":"SUMIFS(Detalizēti_Izdevumi[Čeka summa],Detalizēti_Izdevumi[V/G kods],Mēneša_Izdevumu_Kopsavilkums[[#This Row],[V/G kods]],Detalizēti_Izdevumi[Rēķina datums],\">=\"&N$3,Detalizēti_Izdevumi[Rēķina datums],\"<=\"&N$4)+SUMIFS(Cits[Čeka summa],Cits[V/G kods],Mēneša_Izdevumu_Kopsavilkums[[#This Row],[V/G kods]],Cits[Datums, kad uzsākts čeka pieprasījums],\">=\"&DATEVALUE(\" 1. \"&Mēneša_Izdevumu_Kopsavilkums[[#Headers],[Novembris]]&_GADS),Cits[Datums, kad uzsākts čeka pieprasījums],\"<=\"&N$4)","v":{"v":0,"d":"0.00 EUR"}},{"$f":"SUMIFS(Detalizēti_Izdevumi[Čeka summa],Detalizēti_Izdevumi[V/G kods],Mēneša_Izdevumu_Kopsavilkums[[#This Row],[V/G kods]],Detalizēti_Izdevumi[Rēķina datums],\">=\"&O$3,Detalizēti_Izdevumi[Rēķina datums],\"<=\"&O$4)+SUMIFS(Cits[Čeka summa],Cits[V/G kods],Mēneša_Izdevumu_Kopsavilkums[[#This Row],[V/G kods]],Cits[Datums, kad uzsākts čeka pieprasījums],\">=\"&DATEVALUE(\" 1. \"&Mēneša_Izdevumu_Kopsavilkums[[#Headers],[Decembris]]&_GADS),Cits[Datums, kad uzsākts čeka pieprasījums],\"<=\"&O$4)","v":{"v":0,"d":"0.00 EUR"}},{"$f":"SUM(Mēneša_Izdevumu_Kopsavilkums[[#This Row],[Janvāris]:[Decembris]])","v":{"v":0,"d":"0.00 EUR"}}]
[null,10000,"Mārketings",{"$f":"SUMIFS(Detalizēti_Izdevumi[Čeka summa],Detalizēti_Izdevumi[V/G kods],Mēneša_Izdevumu_Kopsavilkums[[#This Row],[V/G kods]],Detalizēti_Izdevumi[Rēķina datums],\">=\"&D$3,Detalizēti_Izdevumi[Rēķina datums],\"<=\"&D$4)+SUMIFS(Cits[Čeka summa],Cits[V/G kods],Mēneša_Izdevumu_Kopsavilkums[[#This Row],[V/G kods]],Cits[Datums, kad uzsākts čeka pieprasījums],\">=\"&DATEVALUE(\" 1. \"&Mēneša_Izdevumu_Kopsavilkums[[#Headers],[Janvāris]]&_GADS),Cits[Datums, kad uzsākts čeka pieprasījums],\"<=\"&D$4)","v":{"v":0,"d":"0.00 EUR"}},{"$f":"SUMIFS(Detalizēti_Izdevumi[Čeka summa],Detalizēti_Izdevumi[V/G kods],Mēneša_Izdevumu_Kopsavilkums[[#This Row],[V/G kods]],Detalizēti_Izdevumi[Rēķina datums],\">=\"&E$3,Detalizēti_Izdevumi[Rēķina datums],\"<=\"&E$4)+SUMIFS(Cits[Čeka summa],Cits[V/G kods],Mēneša_Izdevumu_Kopsavilkums[[#This Row],[V/G kods]],Cits[Datums, kad uzsākts čeka pieprasījums],\">=\"&DATEVALUE(\" 1. \"&Mēneša_Izdevumu_Kopsavilkums[[#Headers],[Februāris]]&_GADS),Cits[Datums, kad uzsākts čeka pieprasījums],\"<=\"&E$4)","v":{"v":0,"d":"0.00 EUR"}},{"$f":"SUMIFS(Detalizēti_Izdevumi[Čeka summa],Detalizēti_Izdevumi[V/G kods],Mēneša_Izdevumu_Kopsavilkums[[#This Row],[V/G kods]],Detalizēti_Izdevumi[Rēķina datums],\">=\"&F$3,Detalizēti_Izdevumi[Rēķina datums],\"<=\"&F$4)+SUMIFS(Cits[Čeka summa],Cits[V/G kods],Mēneša_Izdevumu_Kopsavilkums[[#This Row],[V/G kods]],Cits[Datums, kad uzsākts čeka pieprasījums],\">=\"&DATEVALUE(\" 1. \"&Mēneša_Izdevumu_Kopsavilkums[[#Headers],[Marts]]&_GADS),Cits[Datums, kad uzsākts čeka pieprasījums],\"<=\"&F$4)","v":{"v":0,"d":"0.00 EUR"}},{"$f":"SUMIFS(Detalizēti_Izdevumi[Čeka summa],Detalizēti_Izdevumi[V/G kods],Mēneša_Izdevumu_Kopsavilkums[[#This Row],[V/G kods]],Detalizēti_Izdevumi[Rēķina datums],\">=\"&G$3,Detalizēti_Izdevumi[Rēķina datums],\"<=\"&G$4)+SUMIFS(Cits[Čeka summa],Cits[V/G kods],Mēneša_Izdevumu_Kopsavilkums[[#This Row],[V/G kods]],Cits[Datums, kad uzsākts čeka pieprasījums],\">=\"&DATEVALUE(\" 1. \"&Mēneša_Izdevumu_Kopsavilkums[[#Headers],[Aprīlis]]&_GADS),Cits[Datums, kad uzsākts čeka pieprasījums],\"<=\"&G$4)","v":{"v":0,"d":"0.00 EUR"}},{"$f":"SUMIFS(Detalizēti_Izdevumi[Čeka summa],Detalizēti_Izdevumi[V/G kods],Mēneša_Izdevumu_Kopsavilkums[[#This Row],[V/G kods]],Detalizēti_Izdevumi[Rēķina datums],\">=\"&H$3,Detalizēti_Izdevumi[Rēķina datums],\"<=\"&H$4)+SUMIFS(Cits[Čeka summa],Cits[V/G kods],Mēneša_Izdevumu_Kopsavilkums[[#This Row],[V/G kods]],Cits[Datums, kad uzsākts čeka pieprasījums],\">=\"&DATEVALUE(\" 1. \"&Mēneša_Izdevumu_Kopsavilkums[[#Headers],[Maijs]]&_GADS),Cits[Datums, kad uzsākts čeka pieprasījums],\"<=\"&H$4)","v":{"v":0,"d":"0.00 EUR"}},{"$f":"SUMIFS(Detalizēti_Izdevumi[Čeka summa],Detalizēti_Izdevumi[V/G kods],Mēneša_Izdevumu_Kopsavilkums[[#This Row],[V/G kods]],Detalizēti_Izdevumi[Rēķina datums],\">=\"&I$3,Detalizēti_Izdevumi[Rēķina datums],\"<=\"&I$4)+SUMIFS(Cits[Čeka summa],Cits[V/G kods],Mēneša_Izdevumu_Kopsavilkums[[#This Row],[V/G kods]],Cits[Datums, kad uzsākts čeka pieprasījums],\">=\"&DATEVALUE(\" 1. \"&Mēneša_Izdevumu_Kopsavilkums[[#Headers],[Jūnijs]]&_GADS),Cits[Datums, kad uzsākts čeka pieprasījums],\"<=\"&I$4)","v":{"v":0,"d":"0.00 EUR"}},{"$f":"SUMIFS(Detalizēti_Izdevumi[Čeka summa],Detalizēti_Izdevumi[V/G kods],Mēneša_Izdevumu_Kopsavilkums[[#This Row],[V/G kods]],Detalizēti_Izdevumi[Rēķina datums],\">=\"&J$3,Detalizēti_Izdevumi[Rēķina datums],\"<=\"&J$4)+SUMIFS(Cits[Čeka summa],Cits[V/G kods],Mēneša_Izdevumu_Kopsavilkums[[#This Row],[V/G kods]],Cits[Datums, kad uzsākts čeka pieprasījums],\">=\"&DATEVALUE(\" 1. \"&Mēneša_Izdevumu_Kopsavilkums[[#Headers],[Jūlijs]]&_GADS),Cits[Datums, kad uzsākts čeka pieprasījums],\"<=\"&J$4)","v":{"v":0,"d":"0.00 EUR"}},{"$f":"SUMIFS(Detalizēti_Izdevumi[Čeka summa],Detalizēti_Izdevumi[V/G kods],Mēneša_Izdevumu_Kopsavilkums[[#This Row],[V/G kods]],Detalizēti_Izdevumi[Rēķina datums],\">=\"&K$3,Detalizēti_Izdevumi[Rēķina datums],\"<=\"&K$4)+SUMIFS(Cits[Čeka summa],Cits[V/G kods],Mēneša_Izdevumu_Kopsavilkums[[#This Row],[V/G kods]],Cits[Datums, kad uzsākts čeka pieprasījums],\">=\"&DATEVALUE(\" 1. \"&Mēneša_Izdevumu_Kopsavilkums[[#Headers],[Augusts]]&_GADS),Cits[Datums, kad uzsākts čeka pieprasījums],\"<=\"&K$4)","v":{"v":0,"d":"0.00 EUR"}},{"$f":"SUMIFS(Detalizēti_Izdevumi[Čeka summa],Detalizēti_Izdevumi[V/G kods],Mēneša_Izdevumu_Kopsavilkums[[#This Row],[V/G kods]],Detalizēti_Izdevumi[Rēķina datums],\">=\"&L$3,Detalizēti_Izdevumi[Rēķina datums],\"<=\"&L$4)+SUMIFS(Cits[Čeka summa],Cits[V/G kods],Mēneša_Izdevumu_Kopsavilkums[[#This Row],[V/G kods]],Cits[Datums, kad uzsākts čeka pieprasījums],\">=\"&DATEVALUE(\" 1. \"&Mēneša_Izdevumu_Kopsavilkums[[#Headers],[Septembris]]&_GADS),Cits[Datums, kad uzsākts čeka pieprasījums],\"<=\"&L$4)","v":{"v":0,"d":"0.00 EUR"}},{"$f":"SUMIFS(Detalizēti_Izdevumi[Čeka summa],Detalizēti_Izdevumi[V/G kods],Mēneša_Izdevumu_Kopsavilkums[[#This Row],[V/G kods]],Detalizēti_Izdevumi[Rēķina datums],\">=\"&M$3,Detalizēti_Izdevumi[Rēķina datums],\"<=\"&M$4)+SUMIFS(Cits[Čeka summa],Cits[V/G kods],Mēneša_Izdevumu_Kopsavilkums[[#This Row],[V/G kods]],Cits[Datums, kad uzsākts čeka pieprasījums],\">=\"&DATEVALUE(\" 1. \"&Mēneša_Izdevumu_Kopsavilkums[[#Headers],[Oktobris]]&_GADS),Cits[Datums, kad uzsākts čeka pieprasījums],\"<=\"&M$4)","v":{"v":0,"d":"0.00 EUR"}},{"$f":"SUMIFS(Detalizēti_Izdevumi[Čeka summa],Detalizēti_Izdevumi[V/G kods],Mēneša_Izdevumu_Kopsavilkums[[#This Row],[V/G kods]],Detalizēti_Izdevumi[Rēķina datums],\">=\"&N$3,Detalizēti_Izdevumi[Rēķina datums],\"<=\"&N$4)+SUMIFS(Cits[Čeka summa],Cits[V/G kods],Mēneša_Izdevumu_Kopsavilkums[[#This Row],[V/G kods]],Cits[Datums, kad uzsākts čeka pieprasījums],\">=\"&DATEVALUE(\" 1. \"&Mēneša_Izdevumu_Kopsavilkums[[#Headers],[Novembris]]&_GADS),Cits[Datums, kad uzsākts čeka pieprasījums],\"<=\"&N$4)","v":{"v":0,"d":"0.00 EUR"}},{"$f":"SUMIFS(Detalizēti_Izdevumi[Čeka summa],Detalizēti_Izdevumi[V/G kods],Mēneša_Izdevumu_Kopsavilkums[[#This Row],[V/G kods]],Detalizēti_Izdevumi[Rēķina datums],\">=\"&O$3,Detalizēti_Izdevumi[Rēķina datums],\"<=\"&O$4)+SUMIFS(Cits[Čeka summa],Cits[V/G kods],Mēneša_Izdevumu_Kopsavilkums[[#This Row],[V/G kods]],Cits[Datums, kad uzsākts čeka pieprasījums],\">=\"&DATEVALUE(\" 1. \"&Mēneša_Izdevumu_Kopsavilkums[[#Headers],[Decembris]]&_GADS),Cits[Datums, kad uzsākts čeka pieprasījums],\"<=\"&O$4)","v":{"v":0,"d":"0.00 EUR"}},{"$f":"SUM(Mēneša_Izdevumu_Kopsavilkums[[#This Row],[Janvāris]:[Decembris]])","v":{"v":0,"d":"0.00 EUR"}}]
[null,11000,"Labdarība",{"$f":"SUMIFS(Detalizēti_Izdevumi[Čeka summa],Detalizēti_Izdevumi[V/G kods],Mēneša_Izdevumu_Kopsavilkums[[#This Row],[V/G kods]],Detalizēti_Izdevumi[Rēķina datums],\">=\"&D$3,Detalizēti_Izdevumi[Rēķina datums],\"<=\"&D$4)+SUMIFS(Cits[Čeka summa],Cits[V/G kods],Mēneša_Izdevumu_Kopsavilkums[[#This Row],[V/G kods]],Cits[Datums, kad uzsākts čeka pieprasījums],\">=\"&DATEVALUE(\" 1. \"&Mēneša_Izdevumu_Kopsavilkums[[#Headers],[Janvāris]]&_GADS),Cits[Datums, kad uzsākts čeka pieprasījums],\"<=\"&D$4)","v":{"v":0,"d":"0.00 EUR"}},{"$f":"SUMIFS(Detalizēti_Izdevumi[Čeka summa],Detalizēti_Izdevumi[V/G kods],Mēneša_Izdevumu_Kopsavilkums[[#This Row],[V/G kods]],Detalizēti_Izdevumi[Rēķina datums],\">=\"&E$3,Detalizēti_Izdevumi[Rēķina datums],\"<=\"&E$4)+SUMIFS(Cits[Čeka summa],Cits[V/G kods],Mēneša_Izdevumu_Kopsavilkums[[#This Row],[V/G kods]],Cits[Datums, kad uzsākts čeka pieprasījums],\">=\"&DATEVALUE(\" 1. \"&Mēneša_Izdevumu_Kopsavilkums[[#Headers],[Februāris]]&_GADS),Cits[Datums, kad uzsākts čeka pieprasījums],\"<=\"&E$4)","v":{"v":0,"d":"0.00 EUR"}},{"$f":"SUMIFS(Detalizēti_Izdevumi[Čeka summa],Detalizēti_Izdevumi[V/G kods],Mēneša_Izdevumu_Kopsavilkums[[#This Row],[V/G kods]],Detalizēti_Izdevumi[Rēķina datums],\">=\"&F$3,Detalizēti_Izdevumi[Rēķina datums],\"<=\"&F$4)+SUMIFS(Cits[Čeka summa],Cits[V/G kods],Mēneša_Izdevumu_Kopsavilkums[[#This Row],[V/G kods]],Cits[Datums, kad uzsākts čeka pieprasījums],\">=\"&DATEVALUE(\" 1. \"&Mēneša_Izdevumu_Kopsavilkums[[#Headers],[Marts]]&_GADS),Cits[Datums, kad uzsākts čeka pieprasījums],\"<=\"&F$4)","v":{"v":0,"d":"0.00 EUR"}},{"$f":"SUMIFS(Detalizēti_Izdevumi[Čeka summa],Detalizēti_Izdevumi[V/G kods],Mēneša_Izdevumu_Kopsavilkums[[#This Row],[V/G kods]],Detalizēti_Izdevumi[Rēķina datums],\">=\"&G$3,Detalizēti_Izdevumi[Rēķina datums],\"<=\"&G$4)+SUMIFS(Cits[Čeka summa],Cits[V/G kods],Mēneša_Izdevumu_Kopsavilkums[[#This Row],[V/G kods]],Cits[Datums, kad uzsākts čeka pieprasījums],\">=\"&DATEVALUE(\" 1. \"&Mēneša_Izdevumu_Kopsavilkums[[#Headers],[Aprīlis]]&_GADS),Cits[Datums, kad uzsākts čeka pieprasījums],\"<=\"&G$4)","v":{"v":0,"d":"0.00 EUR"}},{"$f":"SUMIFS(Detalizēti_Izdevumi[Čeka summa],Detalizēti_Izdevumi[V/G kods],Mēneša_Izdevumu_Kopsavilkums[[#This Row],[V/G kods]],Detalizēti_Izdevumi[Rēķina datums],\">=\"&H$3,Detalizēti_Izdevumi[Rēķina datums],\"<=\"&H$4)+SUMIFS(Cits[Čeka summa],Cits[V/G kods],Mēneša_Izdevumu_Kopsavilkums[[#This Row],[V/G kods]],Cits[Datums, kad uzsākts čeka pieprasījums],\">=\"&DATEVALUE(\" 1. \"&Mēneša_Izdevumu_Kopsavilkums[[#Headers],[Maijs]]&_GADS),Cits[Datums, kad uzsākts čeka pieprasījums],\"<=\"&H$4)","v":{"v":0,"d":"0.00 EUR"}},{"$f":"SUMIFS(Detalizēti_Izdevumi[Čeka summa],Detalizēti_Izdevumi[V/G kods],Mēneša_Izdevumu_Kopsavilkums[[#This Row],[V/G kods]],Detalizēti_Izdevumi[Rēķina datums],\">=\"&I$3,Detalizēti_Izdevumi[Rēķina datums],\"<=\"&I$4)+SUMIFS(Cits[Čeka summa],Cits[V/G kods],Mēneša_Izdevumu_Kopsavilkums[[#This Row],[V/G kods]],Cits[Datums, kad uzsākts čeka pieprasījums],\">=\"&DATEVALUE(\" 1. \"&Mēneša_Izdevumu_Kopsavilkums[[#Headers],[Jūnijs]]&_GADS),Cits[Datums, kad uzsākts čeka pieprasījums],\"<=\"&I$4)","v":{"v":0,"d":"0.00 EUR"}},{"$f":"SUMIFS(Detalizēti_Izdevumi[Čeka summa],Detalizēti_Izdevumi[V/G kods],Mēneša_Izdevumu_Kopsavilkums[[#This Row],[V/G kods]],Detalizēti_Izdevumi[Rēķina datums],\">=\"&J$3,Detalizēti_Izdevumi[Rēķina datums],\"<=\"&J$4)+SUMIFS(Cits[Čeka summa],Cits[V/G kods],Mēneša_Izdevumu_Kopsavilkums[[#This Row],[V/G kods]],Cits[Datums, kad uzsākts čeka pieprasījums],\">=\"&DATEVALUE(\" 1. \"&Mēneša_Izdevumu_Kopsavilkums[[#Headers],[Jūlijs]]&_GADS),Cits[Datums, kad uzsākts čeka pieprasījums],\"<=\"&J$4)","v":{"v":0,"d":"0.00 EUR"}},{"$f":"SUMIFS(Detalizēti_Izdevumi[Čeka summa],Detalizēti_Izdevumi[V/G kods],Mēneša_Izdevumu_Kopsavilkums[[#This Row],[V/G kods]],Detalizēti_Izdevumi[Rēķina datums],\">=\"&K$3,Detalizēti_Izdevumi[Rēķina datums],\"<=\"&K$4)+SUMIFS(Cits[Čeka summa],Cits[V/G kods],Mēneša_Izdevumu_Kopsavilkums[[#This Row],[V/G kods]],Cits[Datums, kad uzsākts čeka pieprasījums],\">=\"&DATEVALUE(\" 1. \"&Mēneša_Izdevumu_Kopsavilkums[[#Headers],[Augusts]]&_GADS),Cits[Datums, kad uzsākts čeka pieprasījums],\"<=\"&K$4)","v":{"v":0,"d":"0.00 EUR"}},{"$f":"SUMIFS(Detalizēti_Izdevumi[Čeka summa],Detalizēti_Izdevumi[V/G kods],Mēneša_Izdevumu_Kopsavilkums[[#This Row],[V/G kods]],Detalizēti_Izdevumi[Rēķina datums],\">=\"&L$3,Detalizēti_Izdevumi[Rēķina datums],\"<=\"&L$4)+SUMIFS(Cits[Čeka summa],Cits[V/G kods],Mēneša_Izdevumu_Kopsavilkums[[#This Row],[V/G kods]],Cits[Datums, kad uzsākts čeka pieprasījums],\">=\"&DATEVALUE(\" 1. \"&Mēneša_Izdevumu_Kopsavilkums[[#Headers],[Septembris]]&_GADS),Cits[Datums, kad uzsākts čeka pieprasījums],\"<=\"&L$4)","v":{"v":0,"d":"0.00 EUR"}},{"$f":"SUMIFS(Detalizēti_Izdevumi[Čeka summa],Detalizēti_Izdevumi[V/G kods],Mēneša_Izdevumu_Kopsavilkums[[#This Row],[V/G kods]],Detalizēti_Izdevumi[Rēķina datums],\">=\"&M$3,Detalizēti_Izdevumi[Rēķina datums],\"<=\"&M$4)+SUMIFS(Cits[Čeka summa],Cits[V/G kods],Mēneša_Izdevumu_Kopsavilkums[[#This Row],[V/G kods]],Cits[Datums, kad uzsākts čeka pieprasījums],\">=\"&DATEVALUE(\" 1. \"&Mēneša_Izdevumu_Kopsavilkums[[#Headers],[Oktobris]]&_GADS),Cits[Datums, kad uzsākts čeka pieprasījums],\"<=\"&M$4)","v":{"v":0,"d":"0.00 EUR"}},{"$f":"SUMIFS(Detalizēti_Izdevumi[Čeka summa],Detalizēti_Izdevumi[V/G kods],Mēneša_Izdevumu_Kopsavilkums[[#This Row],[V/G kods]],Detalizēti_Izdevumi[Rēķina datums],\">=\"&N$3,Detalizēti_Izdevumi[Rēķina datums],\"<=\"&N$4)+SUMIFS(Cits[Čeka summa],Cits[V/G kods],Mēneša_Izdevumu_Kopsavilkums[[#This Row],[V/G kods]],Cits[Datums, kad uzsākts čeka pieprasījums],\">=\"&DATEVALUE(\" 1. \"&Mēneša_Izdevumu_Kopsavilkums[[#Headers],[Novembris]]&_GADS),Cits[Datums, kad uzsākts čeka pieprasījums],\"<=\"&N$4)","v":{"v":0,"d":"0.00 EUR"}},{"$f":"SUMIFS(Detalizēti_Izdevumi[Čeka summa],Detalizēti_Izdevumi[V/G kods],Mēneša_Izdevumu_Kopsavilkums[[#This Row],[V/G kods]],Detalizēti_Izdevumi[Rēķina datums],\">=\"&O$3,Detalizēti_Izdevumi[Rēķina datums],\"<=\"&O$4)+SUMIFS(Cits[Čeka summa],Cits[V/G kods],Mēneša_Izdevumu_Kopsavilkums[[#This Row],[V/G kods]],Cits[Datums, kad uzsākts čeka pieprasījums],\">=\"&DATEVALUE(\" 1. \"&Mēneša_Izdevumu_Kopsavilkums[[#Headers],[Decembris]]&_GADS),Cits[Datums, kad uzsākts čeka pieprasījums],\"<=\"&O$4)","v":{"v":0,"d":"0.00 EUR"}},{"$f":"SUM(Mēneša_Izdevumu_Kopsavilkums[[#This Row],[Janvāris]:[Decembris]])","v":{"v":0,"d":"0.00 EUR"}}]
[null,12000,"Sponsorēšana",{"$f":"SUMIFS(Detalizēti_Izdevumi[Čeka summa],Detalizēti_Izdevumi[V/G kods],Mēneša_Izdevumu_Kopsavilkums[[#This Row],[V/G kods]],Detalizēti_Izdevumi[Rēķina datums],\">=\"&D$3,Detalizēti_Izdevumi[Rēķina datums],\"<=\"&D$4)+SUMIFS(Cits[Čeka summa],Cits[V/G kods],Mēneša_Izdevumu_Kopsavilkums[[#This Row],[V/G kods]],Cits[Datums, kad uzsākts čeka pieprasījums],\">=\"&DATEVALUE(\" 1. \"&Mēneša_Izdevumu_Kopsavilkums[[#Headers],[Janvāris]]&_GADS),Cits[Datums, kad uzsākts čeka pieprasījums],\"<=\"&D$4)","v":{"v":0,"d":"0.00 EUR"}},{"$f":"SUMIFS(Detalizēti_Izdevumi[Čeka summa],Detalizēti_Izdevumi[V/G kods],Mēneša_Izdevumu_Kopsavilkums[[#This Row],[V/G kods]],Detalizēti_Izdevumi[Rēķina datums],\">=\"&E$3,Detalizēti_Izdevumi[Rēķina datums],\"<=\"&E$4)+SUMIFS(Cits[Čeka summa],Cits[V/G kods],Mēneša_Izdevumu_Kopsavilkums[[#This Row],[V/G kods]],Cits[Datums, kad uzsākts čeka pieprasījums],\">=\"&DATEVALUE(\" 1. \"&Mēneša_Izdevumu_Kopsavilkums[[#Headers],[Februāris]]&_GADS),Cits[Datums, kad uzsākts čeka pieprasījums],\"<=\"&E$4)","v":{"v":0,"d":"0.00 EUR"}},{"$f":"SUMIFS(Detalizēti_Izdevumi[Čeka summa],Detalizēti_Izdevumi[V/G kods],Mēneša_Izdevumu_Kopsavilkums[[#This Row],[V/G kods]],Detalizēti_Izdevumi[Rēķina datums],\">=\"&F$3,Detalizēti_Izdevumi[Rēķina datums],\"<=\"&F$4)+SUMIFS(Cits[Čeka summa],Cits[V/G kods],Mēneša_Izdevumu_Kopsavilkums[[#This Row],[V/G kods]],Cits[Datums, kad uzsākts čeka pieprasījums],\">=\"&DATEVALUE(\" 1. \"&Mēneša_Izdevumu_Kopsavilkums[[#Headers],[Marts]]&_GADS),Cits[Datums, kad uzsākts čeka pieprasījums],\"<=\"&F$4)","v":{"v":0,"d":"0.00 EUR"}},{"$f":"SUMIFS(Detalizēti_Izdevumi[Čeka summa],Detalizēti_Izdevumi[V/G kods],Mēneša_Izdevumu_Kopsavilkums[[#This Row],[V/G kods]],Detalizēti_Izdevumi[Rēķina datums],\">=\"&G$3,Detalizēti_Izdevumi[Rēķina datums],\"<=\"&G$4)+SUMIFS(Cits[Čeka summa],Cits[V/G kods],Mēneša_Izdevumu_Kopsavilkums[[#This Row],[V/G kods]],Cits[Datums, kad uzsākts čeka pieprasījums],\">=\"&DATEVALUE(\" 1. \"&Mēneša_Izdevumu_Kopsavilkums[[#Headers],[Aprīlis]]&_GADS),Cits[Datums, kad uzsākts čeka pieprasījums],\"<=\"&G$4)","v":{"v":0,"d":"0.00 EUR"}},{"$f":"SUMIFS(Detalizēti_Izdevumi[Čeka summa],Detalizēti_Izdevumi[V/G kods],Mēneša_Izdevumu_Kopsavilkums[[#This Row],[V/G kods]],Detalizēti_Izdevumi[Rēķina datums],\">=\"&H$3,Detalizēti_Izdevumi[Rēķina datums],\"<=\"&H$4)+SUMIFS(Cits[Čeka summa],Cits[V/G kods],Mēneša_Izdevumu_Kopsavilkums[[#This Row],[V/G kods]],Cits[Datums, kad uzsākts čeka pieprasījums],\">=\"&DATEVALUE(\" 1. \"&Mēneša_Izdevumu_Kopsavilkums[[#Headers],[Maijs]]&_GADS),Cits[Datums, kad uzsākts čeka pieprasījums],\"<=\"&H$4)","v":{"v":0,"d":"0.00 EUR"}},{"$f":"SUMIFS(Detalizēti_Izdevumi[Čeka summa],Detalizēti_Izdevumi[V/G kods],Mēneša_Izdevumu_Kopsavilkums[[#This Row],[V/G kods]],Detalizēti_Izdevumi[Rēķina datums],\">=\"&I$3,Detalizēti_Izdevumi[Rēķina datums],\"<=\"&I$4)+SUMIFS(Cits[Čeka summa],Cits[V/G kods],Mēneša_Izdevumu_Kopsavilkums[[#This Row],[V/G kods]],Cits[Datums, kad uzsākts čeka pieprasījums],\">=\"&DATEVALUE(\" 1. \"&Mēneša_Izdevumu_Kopsavilkums[[#Headers],[Jūnijs]]&_GADS),Cits[Datums, kad uzsākts čeka pieprasījums],\"<=\"&I$4)","v":{"v":0,"d":"0.00 EUR"}},{"$f":"SUMIFS(Detalizēti_Izdevumi[Čeka summa],Detalizēti_Izdevumi[V/G kods],Mēneša_Izdevumu_Kopsavilkums[[#This Row],[V/G kods]],Detalizēti_Izdevumi[Rēķina datums],\">=\"&J$3,Detalizēti_Izdevumi[Rēķina datums],\"<=\"&J$4)+SUMIFS(Cits[Čeka summa],Cits[V/G kods],Mēneša_Izdevumu_Kopsavilkums[[#This Row],[V/G kods]],Cits[Datums, kad uzsākts čeka pieprasījums],\">=\"&DATEVALUE(\" 1. \"&Mēneša_Izdevumu_Kopsavilkums[[#Headers],[Jūlijs]]&_GADS),Cits[Datums, kad uzsākts čeka pieprasījums],\"<=\"&J$4)","v":{"v":0,"d":"0.00 EUR"}},{"$f":"SUMIFS(Detalizēti_Izdevumi[Čeka summa],Detalizēti_Izdevumi[V/G kods],Mēneša_Izdevumu_Kopsavilkums[[#This Row],[V/G kods]],Detalizēti_Izdevumi[Rēķina datums],\">=\"&K$3,Detalizēti_Izdevumi[Rēķina datums],\"<=\"&K$4)+SUMIFS(Cits[Čeka summa],Cits[V/G kods],Mēneša_Izdevumu_Kopsavilkums[[#This Row],[V/G kods]],Cits[Datums, kad uzsākts čeka pieprasījums],\">=\"&DATEVALUE(\" 1. \"&Mēneša_Izdevumu_Kopsavilkums[[#Headers],[Augusts]]&_GADS),Cits[Datums, kad uzsākts čeka pieprasījums],\"<=\"&K$4)","v":{"v":0,"d":"0.00 EUR"}},{"$f":"SUMIFS(Detalizēti_Izdevumi[Čeka summa],Detalizēti_Izdevumi[V/G kods],Mēneša_Izdevumu_Kopsavilkums[[#This Row],[V/G kods]],Detalizēti_Izdevumi[Rēķina datums],\">=\"&L$3,Detalizēti_Izdevumi[Rēķina datums],\"<=\"&L$4)+SUMIFS(Cits[Čeka summa],Cits[V/G kods],Mēneša_Izdevumu_Kopsavilkums[[#This Row],[V/G kods]],Cits[Datums, kad uzsākts čeka pieprasījums],\">=\"&DATEVALUE(\" 1. \"&Mēneša_Izdevumu_Kopsavilkums[[#Headers],[Septembris]]&_GADS),Cits[Datums, kad uzsākts čeka pieprasījums],\"<=\"&L$4)","v":{"v":0,"d":"0.00 EUR"}},{"$f":"SUMIFS(Detalizēti_Izdevumi[Čeka summa],Detalizēti_Izdevumi[V/G kods],Mēneša_Izdevumu_Kopsavilkums[[#This Row],[V/G kods]],Detalizēti_Izdevumi[Rēķina datums],\">=\"&M$3,Detalizēti_Izdevumi[Rēķina datums],\"<=\"&M$4)+SUMIFS(Cits[Čeka summa],Cits[V/G kods],Mēneša_Izdevumu_Kopsavilkums[[#This Row],[V/G kods]],Cits[Datums, kad uzsākts čeka pieprasījums],\">=\"&DATEVALUE(\" 1. \"&Mēneša_Izdevumu_Kopsavilkums[[#Headers],[Oktobris]]&_GADS),Cits[Datums, kad uzsākts čeka pieprasījums],\"<=\"&M$4)","v":{"v":0,"d":"0.00 EUR"}},{"$f":"SUMIFS(Detalizēti_Izdevumi[Čeka summa],Detalizēti_Izdevumi[V/G kods],Mēneša_Izdevumu_Kopsavilkums[[#This Row],[V/G kods]],Detalizēti_Izdevumi[Rēķina datums],\">=\"&N$3,Detalizēti_Izdevumi[Rēķina datums],\"<=\"&N$4)+SUMIFS(Cits[Čeka summa],Cits[V/G kods],Mēneša_Izdevumu_Kopsavilkums[[#This Row],[V/G kods]],Cits[Datums, kad uzsākts čeka pieprasījums],\">=\"&DATEVALUE(\" 1. \"&Mēneša_Izdevumu_Kopsavilkums[[#Headers],[Novembris]]&_GADS),Cits[Datums, kad uzsākts čeka pieprasījums],\"<=\"&N$4)","v":{"v":0,"d":"0.00 EUR"}},{"$f":"SUMIFS(Detalizēti_Izdevumi[Čeka summa],Detalizēti_Izdevumi[V/G kods],Mēneša_Izdevumu_Kopsavilkums[[#This Row],[V/G kods]],Detalizēti_Izdevumi[Rēķina datums],\">=\"&O$3,Detalizēti_Izdevumi[Rēķina datums],\"<=\"&O$4)+SUMIFS(Cits[Čeka summa],Cits[V/G kods],Mēneša_Izdevumu_Kopsavilkums[[#This Row],[V/G kods]],Cits[Datums, kad uzsākts čeka pieprasījums],\">=\"&DATEVALUE(\" 1. \"&Mēneša_Izdevumu_Kopsavilkums[[#Headers],[Decembris]]&_GADS),Cits[Datums, kad uzsākts čeka pieprasījums],\"<=\"&O$4)","v":{"v":0,"d":"0.00 EUR"}},{"$f":"SUM(Mēneša_Izdevumu_Kopsavilkums[[#This Row],[Janvāris]:[Decembris]])","v":{"v":0,"d":"0.00 EUR"}}]
[null,"Kopsumma",null,{"$f":"SUBTOTAL(109,Mēneša_Izdevumu_Kopsavilkums[Janvāris])","v":{"v":0,"d":"0.00 EUR"}},{"$f":"SUBTOTAL(109,Mēneša_Izdevumu_Kopsavilkums[Februāris])","v":{"v":0,"d":"0.00 EUR"}},{"$f":"SUBTOTAL(109,Mēneša_Izdevumu_Kopsavilkums[Marts])","v":{"v":0,"d":"0.00 EUR"}},{"$f":"SUBTOTAL(109,Mēneša_Izdevumu_Kopsavilkums[Aprīlis])","v":{"v":0,"d":"0.00 EUR"}},{"$f":"SUBTOTAL(109,Mēneša_Izdevumu_Kopsavilkums[Maijs])","v":{"v":0,"d":"0.00 EUR"}},{"$f":"SUBTOTAL(109,Mēneša_Izdevumu_Kopsavilkums[Jūnijs])","v":{"v":0,"d":"0.00 EUR"}},{"$f":"SUBTOTAL(109,Mēneša_Izdevumu_Kopsavilkums[Jūlijs])","v":{"v":0,"d":"0.00 EUR"}},{"$f":"SUBTOTAL(109,Mēneša_Izdevumu_Kopsavilkums[Augusts])","v":{"v":0,"d":"0.00 EUR"}},{"$f":"SUBTOTAL(109,Mēneša_Izdevumu_Kopsavilkums[Septembris])","v":{"v":0,"d":"0.00 EUR"}},{"$f":"SUBTOTAL(109,Mēneša_Izdevumu_Kopsavilkums[Oktobris])","v":{"v":0,"d":"0.00 EUR"}},{"$f":"SUBTOTAL(109,Mēneša_Izdevumu_Kopsavilkums[Novembris])","v":{"v":0,"d":"0.00 EUR"}},{"$f":"SUBTOTAL(109,Mēneša_Izdevumu_Kopsavilkums[Decembris])","v":{"v":0,"d":"0.00 EUR"}},{"$f":"SUBTOTAL(109,Mēneša_Izdevumu_Kopsavilkums[Kopā])","v":{"v":0,"d":"0.00 EUR"}}]

{"sheet":"DETALIZĒTI IZDEVUMI","index":2,"n_rows":6,"n_cols":10,"rows_kept":6,"merged":[[1,1,1,9],[2,1,2,5],[2,6,2,9]]}
[null,"MĒNEŠA IZDEVUMU KOPSAVILKUMS","LABDARĪBA UN SPONSORĒŠANA"]
[null,"DETALIZĒTI IZDEVUMI"]
[null,"Datu griezums, lai filtrētu datus pēc naudas saņēmēja, ir šajā šūnā, un datu griezums, lai filtrētu datus pēc maksātāja, ir šūnā pa labi.",{"$nulls":4},"Datu griezums datu filtrēšanai pēc maksātāja ir šajā šūnā."]
[null,"V/G kods","Rēķina datums","Rēķina nr.","Pieprasīja","Čeka summa","Naudas saņēmējs","Čeka lietojums","Izplatīšanas veids","Faila datums"]
[null,1000,"Datums",100,"Laimonis Dūmiņš",{"v":750.75,"d":"750.75 EUR"},"Consolidated Messenger ","Pasta sūtītājs","Pasts","Datums"]
[null,7000,"Datums",101,"Matiass Polis",{"v":2500,"d":"2,500.00 EUR"},"A. Datum Corporation ","2 galddatori","Kredīts","Datums"]

{"sheet":"LABDARĪBA UN SPONSORĒŠANA","index":3,"n_rows":6,"n_cols":12,"rows_kept":6,"merged":[[1,1,1,11],[2,1,2,5],[2,6,2,11]]}
[null,"DETALIZĒTI IZDEVUMI"]
[null,"LABDARĪBA UN SPONSORĒŠANA"]
[null,"Datu griezums, lai filtrētu datus pēc naudas saņēmēja, ir šajā šūnā, un datu griezums, lai filtrētu datus pēc maksātāja, ir šūnā pa labi.",{"$nulls":4},"Datu griezums datu filtrēšanai pēc maksātāja ir šajā šūnā."]
[null,"V/G kods","Datums, kad uzsākts čeka pieprasījums","Pieprasīja","Čeka summa","Iepriekšējā gada ieguldījums","Naudas saņēmējs","Kam izmantots","Parakstīja","Kategorija","Izplatīšanas veids","Faila datums"]
[null,12000,"Datums","Alīda Zvirbule",{"v":1000,"d":"1,000.00 EUR"},{"v":12,"d":"12.00 EUR"},"Mākslas skola ","Stipendijas","Agrita Krieva","Māksla","Čeks","Datums"]
[null,11000,"Datums","Alīda Zvirbule",{"v":2500,"d":"2,500.00 EUR"},{"v":0,"d":"0.00 EUR"},"Wingtip rotaļlietas ","Kopiena","Ella Krēsliņa","Kopiena","Čeks","Datums"]